{"text_format":"3","workbook":"xlsx","n_sheets":4,"sheets":["СВОДНЫЙ БЮДЖЕТ С НАЧАЛА ГОДА","ТАБЛИЦА РАСХОДОВ ЗА МЕСЯЦ","РАСХОДЫ ПО СТАТЬЯМ","БЛАГОТВОРИТЕЛЬНОСТЬ"],"not_rendered":{"images":1,"defined_names":15},"read":"whole","date_system":"1900"}

{"sheet":"СВОДНЫЙ БЮДЖЕТ С НАЧАЛА ГОДА","index":0,"n_rows":16,"n_cols":7,"rows_kept":16,"merged":[[1,1,1,4]]}
[]
[null,"ФАКТИЧЕСКОЕ И БЮДЖЕТНОЕ ЗНАЧЕНИЕ С НАЧАЛА ГОДА",{"$nulls":3},"ГОД",{"$f":"YEAR(TODAY())","v":2019}]
[null,"Код ГК","Название счета","Фактические","Бюджет","Остаток, ₽","Остаток, %"]
[null,1000,"Реклама",{"$f":"SUMIF(ТаблицаРасходовЗаМесяц[Код ГК],ТаблицаСНачалаГода[[#This Row],[Код ГК]],ТаблицаРасходовЗаМесяц[Итог])","v":{"v":0,"d":"0.00 ₽"}},{"v":100000,"d":"100,000.00 ₽"},{"$f":"IF(ТаблицаСНачалаГода[[#This Row],[Бюджет]]=\"\",\"\",ТаблицаСНачалаГода[[#This Row],[Бюджет]]-ТаблицаСНачалаГода[[#This Row],[Фактические]])","v":{"v":100000,"d":"100,000.00 ₽"}},{"$f":"IFERROR(ТаблицаСНачалаГода[[#This Row],[Остаток, ₽]]/ТаблицаСНачалаГода[[#This Row],[Бюджет]],\"\")","v":{"v":1,"d":"100.00%"}}]
[null,2000,"Офисное оборудование",{"$f":"SUMIF(ТаблицаРасходовЗаМесяц[Код ГК],ТаблицаСНачалаГода[[#This Row],[Код ГК]],ТаблицаРасходовЗаМесяц[Итог])","v":{"v":0,"d":"0.00 ₽"}},{"v":100000,"d":"100,000.00 ₽"},{"$f":"IF(ТаблицаСНачалаГода[[#This Row],[Бюджет]]=\"\",\"\",ТаблицаСНачалаГода[[#This Row],[Бюджет]]-ТаблицаСНачалаГода[[#This Row],[Фактические]])","v":{"v":100000,"d":"100,000.00 ₽"}},{"$f":"IFERROR(ТаблицаСНачалаГода[[#This Row],[Остаток, ₽]]/ТаблицаСНачалаГода[[#This Row],[Бюджет]],\"\")","v":{"v":1,"d":"100.00%"}}]
[null,3000,"Принтеры",{"$f":"SUMIF(ТаблицаРасходовЗаМесяц[Код ГК],ТаблицаСНачалаГода[[#This Row],[Код ГК]],ТаблицаРасходовЗаМесяц[Итог])","v":{"v":0,"d":"0.00 ₽"}},{"v":100000,"d":"100,000.00 ₽"},{"$f":"IF(ТаблицаСНачалаГода[[#This Row],[Бюджет]]=\"\",\"\",ТаблицаСНачалаГода[[#This Row],[Бюджет]]-ТаблицаСНачалаГода[[#This Row],[Фактические]])","v":{"v":100000,"d":"100,000.00 ₽"}},{"$f":"IFERROR(ТаблицаСНачалаГода[[#This Row],[Остаток, ₽]]/ТаблицаСНачалаГода[[#This Row],[Бюджет]],\"\")","v":{"v":1,"d":"100.00%"}}]
[null,4000,"Затраты на сервер",{"$f":"SUMIF(ТаблицаРасходовЗаМесяц[Код ГК],ТаблицаСНачалаГода[[#This Row],[Код ГК]],ТаблицаРасходовЗаМесяц[Итог])","v":{"v":0,"d":"0.00 ₽"}},{"v":100000,"d":"100,000.00 ₽"},{"$f":"IF(ТаблицаСНачалаГода[[#This Row],[Бюджет]]=\"\",\"\",ТаблицаСНачалаГода[[#This Row],[Бюджет]]-ТаблицаСНачалаГода[[#This Row],[Фактические]])","v":{"v":100000,"d":"100,000.00 ₽"}},{"$f":"IFERROR(ТаблицаСНачалаГода[[#This Row],[Остаток, ₽]]/ТаблицаСНачалаГода[[#This Row],[Бюджет]],\"\")","v":{"v":1,"d":"100.00%"}}]
[null,5000,"Принадлежности",{"$f":"SUMIF(ТаблицаРасходовЗаМесяц[Код ГК],ТаблицаСНачалаГода[[#This Row],[Код ГК]],ТаблицаРасходовЗаМесяц[Итог])","v":{"v":0,"d":"0.00 ₽"}},{"v":50000,"d":"50,000.00 ₽"},{"$f":"IF(ТаблицаСНачалаГода[[#This Row],[Бюджет]]=\"\",\"\",ТаблицаСНачалаГода[[#This Row],[Бюджет]]-ТаблицаСНачалаГода[[#This Row],[Фактические]])","v":{"v":50000,"d":"50,000.00 ₽"}},{"$f":"IFERROR(ТаблицаСНачалаГода[[#This Row],[Остаток, ₽]]/ТаблицаСНачалаГода[[#This Row],[Бюджет]],\"\")","v":{"v":1,"d":"100.00%"}}]
[null,6000,"Расходы клиента",{"$f":"SUMIF(ТаблицаРасходовЗаМесяц[Код ГК],ТаблицаСНачалаГода[[#This Row],[Код ГК]],ТаблицаРасходовЗаМесяц[Итог])","v":{"v":0,"d":"0.00 ₽"}},{"v":25000,"d":"25,000.00 ₽"},{"$f":"IF(ТаблицаСНачалаГода[[#This Row],[Бюджет]]=\"\",\"\",ТаблицаСНачалаГода[[#This Row],[Бюджет]]-ТаблицаСНачалаГода[[#This Row],[Фактические]])","v":{"v":25000,"d":"25,000.00 ₽"}},{"$f":"IFERROR(ТаблицаСНачалаГода[[#This Row],[Остаток, ₽]]/ТаблицаСНачалаГода[[#This Row],[Бюджет]],\"\")","v":{"v":1,"d":"100.00%"}}]
[null,7000,"Компьютеры",{"$f":"SUMIF(ТаблицаРасходовЗаМесяц[Код ГК],ТаблицаСНачалаГода[[#This Row],[Код ГК]],ТаблицаРасходовЗаМесяц[Итог])","v":{"v":0,"d":"0.00 ₽"}},{"v":75000,"d":"75,000.00 ₽"},{"$f":"IF(ТаблицаСНачалаГода[[#This Row],[Бюджет]]=\"\",\"\",ТаблицаСНачалаГода[[#This Row],[Бюджет]]-ТаблицаСНачалаГода[[#This Row],[Фактические]])","v":{"v":75000,"d":"75,000.00 ₽"}},{"$f":"IFERROR(ТаблицаСНачалаГода[[#This Row],[Остаток, ₽]]/ТаблицаСНачалаГода[[#This Row],[Бюджет]],\"\")","v":{"v":1,"d":"100.00%"}}]
[null,8000,"Медицинский план",{"$f":"SUMIF(ТаблицаРасходовЗаМесяц[Код ГК],ТаблицаСНачалаГода[[#This Row],[Код ГК]],ТаблицаРасходовЗаМесяц[Итог])","v":{"v":0,"d":"0.00 ₽"}},{"v":65000,"d":"65,000.00 ₽"},{"$f":"IF(ТаблицаСНачалаГода[[#This Row],[Бюджет]]=\"\",\"\",ТаблицаСНачалаГода[[#This Row],[Бюджет]]-ТаблицаСНачалаГода[[#This Row],[Фактические]])","v":{"v":65000,"d":"65,000.00 ₽"}},{"$f":"IFERROR(ТаблицаСНачалаГода[[#This Row],[Остаток, ₽]]/ТаблицаСНачалаГода[[#This Row],[Бюджет]],\"\")","v":{"v":1,"d":"100.00%"}}]
[null,9000,"Затраты на здание",{"$f":"SUMIF(ТаблицаРасходовЗаМесяц[Код ГК],ТаблицаСНачалаГода[[#This Row],[Код ГК]],ТаблицаРасходовЗаМесяц[Итог])","v":{"v":0,"d":"0.00 ₽"}},{"v":125000,"d":"125,000.00 ₽"},{"$f":"IF(ТаблицаСНачалаГода[[#This Row],[Бюджет]]=\"\",\"\",ТаблицаСНачалаГода[[#This Row],[Бюджет]]-ТаблицаСНачалаГода[[#This Row],[Фактические]])","v":{"v":125000,"d":"125,000.00 ₽"}},{"$f":"IFERROR(ТаблицаСНачалаГода[[#This Row],[Остаток, ₽]]/ТаблицаСНачалаГода[[#This Row],[Бюджет]],\"\")","v":{"v":1,"d":"100.00%"}}]
[null,10000,"Маркетинг",{"$f":"SUMIF(ТаблицаРасходовЗаМесяц[Код ГК],ТаблицаСНачалаГода[[#This Row],[Код ГК]],ТаблицаРасходовЗаМесяц[Итог])","v":{"v":0,"d":"0.00 ₽"}},{"v":100000,"d":"100,000.00 ₽"},{"$f":"IF(ТаблицаСНачалаГода[[#This Row],[Бюджет]]=\"\",\"\",ТаблицаСНачалаГода[[#This Row],[Бюджет]]-ТаблицаСНачалаГода[[#This Row],[Фактические]])","v":{"v":100000,"d":"100,000.00 ₽"}},{"$f":"IFERROR(ТаблицаСНачалаГода[[#This Row],[Остаток, ₽]]/ТаблицаСНачалаГода[[#This Row],[Бюджет]],\"\")","v":{"v":1,"d":"100.00%"}}]
[null,11000,"Благотворительность",{"$f":"SUMIF(ТаблицаРасходовЗаМесяц[Код ГК],ТаблицаСНачалаГода[[#This Row],[Код ГК]],ТаблицаРасходовЗаМесяц[Итог])","v":{"v":0,"d":"0.00 ₽"}},{"v":250000,"d":"250,000.00 ₽"},{"$f":"IF(ТаблицаСНачалаГода[[#This Row],[Бюджет]]=\"\",\"\",ТаблицаСНачалаГода[[#This Row],[Бюджет]]-ТаблицаСНачалаГода[[#This Row],[Фактические]])","v":{"v":250000,"d":"250,000.00 ₽"}},{"$f":"IFERROR(ТаблицаСНачалаГода[[#This Row],[Остаток, ₽]]/ТаблицаСНачалаГода[[#This Row],[Бюджет]],\"\")","v":{"v":1,"d":"100.00%"}}]
[null,12000,"Спонсорство",{"$f":"SUMIF(ТаблицаРасходовЗаМесяц[Код ГК],ТаблицаСНачалаГода[[#This Row],[Код ГК]],ТаблицаРасходовЗаМесяц[Итог])","v":{"v":0,"d":"0.00 ₽"}},{"v":50000,"d":"50,000.00 ₽"},{"$f":"IF(ТаблицаСНачалаГода[[#This Row],[Бюджет]]=\"\",\"\",ТаблицаСНачалаГода[[#This Row],[Бюджет]]-ТаблицаСНачалаГода[[#This Row],[Фактические]])","v":{"v":50000,"d":"50,000.00 ₽"}},{"$f":"IFERROR(ТаблицаСНачалаГода[[#This Row],[Остаток, ₽]]/ТаблицаСНачалаГода[[#This Row],[Бюджет]],\"\")","v":{"v":1,"d":"100.00%"}}]
[null,"Итог",null,{"$f":"SUBTOTAL(109,ТаблицаСНачалаГода[Фактические])","v":{"v":0,"d":"0.00 ₽"}},{"$f":"SUBTOTAL(109,ТаблицаСНачалаГода[Бюджет])","v":{"v":1140000,"d":"1,140,000.00 ₽"}},{"$f":"SUBTOTAL(109,ТаблицаСНачалаГода[Остаток, ₽])","v":{"v":1140000,"d":"1,140,000.00 ₽"}},{"$f":"ТаблицаСНачалаГода[[#Totals],[Остаток, ₽]]/ТаблицаСНачалаГода[[#Totals],[Бюджет]]","v":{"v":1,"d":"100.00%"}}]

{"sheet":"ТАБЛИЦА РАСХОДОВ ЗА МЕСЯЦ","index":1,"n_rows":18,"n_cols":17,"rows_kept":18,"merged":[[1,1,1,16]]}
[]
[null,"ТАБЛИЦА РАСХОДОВ ЗА МЕСЯЦ"]
[null,"В этой ячейке находится срез для фильтрации данных по названиям счетов.",null,{"$f":"DATEVALUE(\"1 ЯНВ\"&_ГОД)","v":{"v":43466,"d":"4346600.00%"}},{"$f":"DATEVALUE(\"1 ФЕВ\"&_ГОД)","v":{"v":43497,"d":"4349700.00%"}},{"$f":"DATEVALUE(\"1 МАР\"&_ГОД)","v":{"v":43525,"d":"4352500.00%"}},{"$f":"DATEVALUE(\"1 АПР\"&_ГОД)","v":{"v":43556,"d":"4355600.00%"}},{"$f":"DATEVALUE(\"1 МАЙ\"&_ГОД)","v":{"v":43586,"d":"4358600.00%"}},{"$f":"DATEVALUE(\"1 ИЮН\"&_ГОД)","v":{"v":43617,"d":"4361700.00%"}},{"$f":"DATEVALUE(\"1 ИЮЛ\"&_ГОД)","v":{"v":43647,"d":"4364700.00%"}},{"$f":"DATEVALUE(\"1 АВГ\"&_ГОД)","v":{"v":43678,"d":"4367800.00%"}},{"$f":"DATEVALUE(\"1 СЕН\"&_ГОД)","v":{"v":43709,"d":"4370900.00%"}},{"$f":"DATEVALUE(\"1 ОКТ\"&_ГОД)","v":{"v":43739,"d":"4373900.00%"}},{"$f":"DATEVALUE(\"1 НОЯ\"&_ГОД)","v":{"v":43770,"d":"4377000.00%"}},{"$f":"DATEVALUE(\"1 ДЕК\"&_ГОД)","v":{"v":43800,"d":"4380000.00%"}}]
[{"$nulls":3},{"$f":"EOMONTH(D3,0)","v":{"v":43496,"d":"4349600.00%"}},{"$f":"EOMONTH(E3,0)","v":{"v":43524,"d":"4352400.00%"}},{"$f":"EOMONTH(F3,0)","v":{"v":43555,"d":"4355500.00%"}},{"$f":"EOMONTH(G3,0)","v":{"v":43585,"d":"4358500.00%"}},{"$f":"EOMONTH(H3,0)","v":{"v":43616,"d":"4361600.00%"}},{"$f":"EOMONTH(I3,0)","v":{"v":43646,"d":"4364600.00%"}},{"v":43677,"d":"4367700.00%"},{"v":43708,"d":"4370800.00%"},{"v":43738,"d":"4373800.00%"},{"v":43769,"d":"4376900.00%"},{"v":43799,"d":"4379900.00%"},{"v":43830,"d":"4383000.00%"}]
[null,"Код ГК","Название счета","Январь","Февраль","Март","Апрель","Май","Июнь","Июль","Август","Сентябрь","Октябрь","Ноябрь","Декабрь","Итог"," "]
[null,1000,"Реклама",{"$f":"SUMIFS(РасходыПоСтатьям[Сумма платежа],РасходыПоСтатьям[Код ГК],ТаблицаРасходовЗаМесяц[[#This Row],[Код ГК]],РасходыПоСтатьям[Дата счета],\">=\"&D$3,РасходыПоСтатьям[Дата счета],\"<=\"&D$4)+SUMIFS(Другое[Сумма платежа],Другое[Код ГК],ТаблицаРасходовЗаМесяц[[#This Row],[Код ГК]],Другое[Дата отправки запроса на платеж],\">=\"&DATEVALUE(\" 1 \"&ТаблицаРасходовЗаМесяц[[#Headers],[Январь]]&_ГОД),Другое[Дата отправки запроса на платеж],\"<=\"&D$4)","v":{"v":0,"d":"0.00 ₽"}},{"$f":"SUMIFS(РасходыПоСтатьям[Сумма платежа],РасходыПоСтатьям[Код ГК],ТаблицаРасходовЗаМесяц[[#This Row],[Код ГК]],РасходыПоСтатьям[Дата счета],\">=\"&E$3,РасходыПоСтатьям[Дата счета],\"<=\"&E$4)+SUMIFS(Другое[Сумма платежа],Другое[Код ГК],ТаблицаРасходовЗаМесяц[[#This Row],[Код ГК]],Другое[Дата отправки запроса на платеж],\">=\"&DATEVALUE(\" 1 \"&ТаблицаРасходовЗаМесяц[[#Headers],[Февраль]]&_ГОД),Другое[Дата отправки запроса на платеж],\"<=\"&E$4)","v":{"v":0,"d":"0.00 ₽"}},{"$f":"SUMIFS(РасходыПоСтатьям[Сумма платежа],РасходыПоСтатьям[Код ГК],ТаблицаРасходовЗаМесяц[[#This Row],[Код ГК]],РасходыПоСтатьям[Дата счета],\">=\"&F$3,РасходыПоСтатьям[Дата счета],\"<=\"&F$4)+SUMIFS(Другое[Сумма платежа],Другое[Код ГК],ТаблицаРасходовЗаМесяц[[#This Row],[Код ГК]],Другое[Дата отправки запроса на платеж],\">=\"&DATEVALUE(\" 1 \"&ТаблицаРасходовЗаМесяц[[#Headers],[Март]]&_ГОД),Другое[Дата отправки запроса на платеж],\"<=\"&F$4)","v":{"v":0,"d":"0.00 ₽"}},{"$f":"SUMIFS(РасходыПоСтатьям[Сумма платежа],РасходыПоСтатьям[Код ГК],ТаблицаРасходовЗаМесяц[[#This Row],[Код ГК]],РасходыПоСтатьям[Дата счета],\">=\"&G$3,РасходыПоСтатьям[Дата счета],\"<=\"&G$4)+SUMIFS(Другое[Сумма платежа],Другое[Код ГК],ТаблицаРасходовЗаМесяц[[#This Row],[Код ГК]],Другое[Дата отправки запроса на платеж],\">=\"&DATEVALUE(\" 1 \"&ТаблицаРасходовЗаМесяц[[#Headers],[Апрель]]&_ГОД),Другое[Дата отправки запроса на платеж],\"<=\"&G$4)","v":{"v":0,"d":"0.00 ₽"}},{"$f":"SUMIFS(РасходыПоСтатьям[Сумма платежа],РасходыПоСтатьям[Код ГК],ТаблицаРасходовЗаМесяц[[#This Row],[Код ГК]],РасходыПоСтатьям[Дата счета],\">=\"&H$3,РасходыПоСтатьям[Дата счета],\"<=\"&H$4)+SUMIFS(Другое[Сумма платежа],Другое[Код ГК],ТаблицаРасходовЗаМесяц[[#This Row],[Код ГК]],Другое[Дата отправки запроса на платеж],\">=\"&DATEVALUE(\" 1 \"&ТаблицаРасходовЗаМесяц[[#Headers],[Май]]&_ГОД),Другое[Дата отправки запроса на платеж],\"<=\"&H$4)","v":{"v":0,"d":"0.00 ₽"}},{"$f":"SUMIFS(РасходыПоСтатьям[Сумма платежа],РасходыПоСтатьям[Код ГК],ТаблицаРасходовЗаМесяц[[#This Row],[Код ГК]],РасходыПоСтатьям[Дата счета],\">=\"&I$3,РасходыПоСтатьям[Дата счета],\"<=\"&I$4)+SUMIFS(Другое[Сумма платежа],Другое[Код ГК],ТаблицаРасходовЗаМесяц[[#This Row],[Код ГК]],Другое[Дата отправки запроса на платеж],\">=\"&DATEVALUE(\" 1 \"&ТаблицаРасходовЗаМесяц[[#Headers],[Июнь]]&_ГОД),Другое[Дата отправки запроса на платеж],\"<=\"&I$4)","v":{"v":0,"d":"0.00 ₽"}},{"$f":"SUMIFS(РасходыПоСтатьям[Сумма платежа],РасходыПоСтатьям[Код ГК],ТаблицаРасходовЗаМесяц[[#This Row],[Код ГК]],РасходыПоСтатьям[Дата счета],\">=\"&J$3,РасходыПоСтатьям[Дата счета],\"<=\"&J$4)+SUMIFS(Другое[Сумма платежа],Другое[Код ГК],ТаблицаРасходовЗаМесяц[[#This Row],[Код ГК]],Другое[Дата отправки запроса на платеж],\">=\"&DATEVALUE(\" 1 \"&ТаблицаРасходовЗаМесяц[[#Headers],[Июль]]&_ГОД),Другое[Дата отправки запроса на платеж],\"<=\"&J$4)","v":{"v":0,"d":"0.00 ₽"}},{"$f":"SUMIFS(РасходыПоСтатьям[Сумма платежа],РасходыПоСтатьям[Код ГК],ТаблицаРасходовЗаМесяц[[#This Row],[Код ГК]],РасходыПоСтатьям[Дата счета],\">=\"&K$3,РасходыПоСтатьям[Дата счета],\"<=\"&K$4)+SUMIFS(Другое[Сумма платежа],Другое[Код ГК],ТаблицаРасходовЗаМесяц[[#This Row],[Код ГК]],Другое[Дата отправки запроса на платеж],\">=\"&DATEVALUE(\" 1 \"&ТаблицаРасходовЗаМесяц[[#Headers],[Август]]&_ГОД),Другое[Дата отправки запроса на платеж],\"<=\"&K$4)","v":{"v":0,"d":"0.00 ₽"}},{"$f":"SUMIFS(РасходыПоСтатьям[Сумма платежа],РасходыПоСтатьям[Код ГК],ТаблицаРасходовЗаМесяц[[#This Row],[Код ГК]],РасходыПоСтатьям[Дата счета],\">=\"&L$3,РасходыПоСтатьям[Дата счета],\"<=\"&L$4)+SUMIFS(Другое[Сумма платежа],Другое[Код ГК],ТаблицаРасходовЗаМесяц[[#This Row],[Код ГК]],Другое[Дата отправки запроса на платеж],\">=\"&DATEVALUE(\" 1 \"&ТаблицаРасходовЗаМесяц[[#Headers],[Сентябрь]]&_ГОД),Другое[Дата отправки запроса на платеж],\"<=\"&L$4)","v":{"v":0,"d":"0.00 ₽"}},{"$f":"SUMIFS(РасходыПоСтатьям[Сумма платежа],РасходыПоСтатьям[Код ГК],ТаблицаРасходовЗаМесяц[[#This Row],[Код ГК]],РасходыПоСтатьям[Дата счета],\">=\"&M$3,РасходыПоСтатьям[Дата счета],\"<=\"&M$4)+SUMIFS(Другое[Сумма платежа],Другое[Код ГК],ТаблицаРасходовЗаМесяц[[#This Row],[Код ГК]],Другое[Дата отправки запроса на платеж],\">=\"&DATEVALUE(\" 1 \"&ТаблицаРасходовЗаМесяц[[#Headers],[Октябрь]]&_ГОД),Другое[Дата отправки запроса на платеж],\"<=\"&M$4)","v":{"v":0,"d":"0.00 ₽"}},{"$f":"SUMIFS(РасходыПоСтатьям[Сумма платежа],РасходыПоСтатьям[Код ГК],ТаблицаРасходовЗаМесяц[[#This Row],[Код ГК]],РасходыПоСтатьям[Дата счета],\">=\"&N$3,РасходыПоСтатьям[Дата счета],\"<=\"&N$4)+SUMIFS(Другое[Сумма платежа],Другое[Код ГК],ТаблицаРасходовЗаМесяц[[#This Row],[Код ГК]],Другое[Дата отправки запроса на платеж],\">=\"&DATEVALUE(\" 1 \"&ТаблицаРасходовЗаМесяц[[#Headers],[Ноябрь]]&_ГОД),Другое[Дата отправки запроса на платеж],\"<=\"&N$4)","v":{"v":0,"d":"0.00 ₽"}},{"$f":"SUMIFS(РасходыПоСтатьям[Сумма платежа],РасходыПоСтатьям[Код ГК],ТаблицаРасходовЗаМесяц[[#This Row],[Код ГК]],РасходыПоСтатьям[Дата счета],\">=\"&O$3,РасходыПоСтатьям[Дата счета],\"<=\"&O$4)+SUMIFS(Другое[Сумма платежа],Другое[Код ГК],ТаблицаРасходовЗаМесяц[[#This Row],[Код ГК]],Другое[Дата отправки запроса на платеж],\">=\"&DATEVALUE(\" 1 \"&ТаблицаРасходовЗаМесяц[[#Headers],[Декабрь]]&_ГОД),Другое[Дата отправки запроса на платеж],\"<=\"&O$4)","v":{"v":0,"d":"0.00 ₽"}},{"$f":"SUM(ТаблицаРасходовЗаМесяц[[#This Row],[Январь]:[Декабрь]])","v":{"v":0,"d":"0.00 ₽"}}]
[null,2000,"Офисное оборудование",{"$f":"SUMIFS(РасходыПоСтатьям[Сумма платежа],РасходыПоСтатьям[Код ГК],ТаблицаРасходовЗаМесяц[[#This Row],[Код ГК]],РасходыПоСтатьям[Дата счета],\">=\"&D$3,РасходыПоСтатьям[Дата счета],\"<=\"&D$4)+SUMIFS(Другое[Сумма платежа],Другое[Код ГК],ТаблицаРасходовЗаМесяц[[#This Row],[Код ГК]],Другое[Дата отправки запроса на платеж],\">=\"&DATEVALUE(\" 1 \"&ТаблицаРасходовЗаМесяц[[#Headers],[Январь]]&_ГОД),Другое[Дата отправки запроса на платеж],\"<=\"&D$4)","v":{"v":0,"d":"0.00 ₽"}},{"$f":"SUMIFS(РасходыПоСтатьям[Сумма платежа],РасходыПоСтатьям[Код ГК],ТаблицаРасходовЗаМесяц[[#This Row],[Код ГК]],РасходыПоСтатьям[Дата счета],\">=\"&E$3,РасходыПоСтатьям[Дата счета],\"<=\"&E$4)+SUMIFS(Другое[Сумма платежа],Другое[Код ГК],ТаблицаРасходовЗаМесяц[[#This Row],[Код ГК]],Другое[Дата отправки запроса на платеж],\">=\"&DATEVALUE(\" 1 \"&ТаблицаРасходовЗаМесяц[[#Headers],[Февраль]]&_ГОД),Другое[Дата отправки запроса на платеж],\"<=\"&E$4)","v":{"v":0,"d":"0.00 ₽"}},{"$f":"SUMIFS(РасходыПоСтатьям[Сумма платежа],РасходыПоСтатьям[Код ГК],ТаблицаРасходовЗаМесяц[[#This Row],[Код ГК]],РасходыПоСтатьям[Дата счета],\">=\"&F$3,РасходыПоСтатьям[Дата счета],\"<=\"&F$4)+SUMIFS(Другое[Сумма платежа],Другое[Код ГК],ТаблицаРасходовЗаМесяц[[#This Row],[Код ГК]],Другое[Дата отправки запроса на платеж],\">=\"&DATEVALUE(\" 1 \"&ТаблицаРасходовЗаМесяц[[#Headers],[Март]]&_ГОД),Другое[Дата отправки запроса на платеж],\"<=\"&F$4)","v":{"v":0,"d":"0.00 ₽"}},{"$f":"SUMIFS(РасходыПоСтатьям[Сумма платежа],РасходыПоСтатьям[Код ГК],ТаблицаРасходовЗаМесяц[[#This Row],[Код ГК]],РасходыПоСтатьям[Дата счета],\">=\"&G$3,РасходыПоСтатьям[Дата счета],\"<=\"&G$4)+SUMIFS(Другое[Сумма платежа],Другое[Код ГК],ТаблицаРасходовЗаМесяц[[#This Row],[Код ГК]],Другое[Дата отправки запроса на платеж],\">=\"&DATEVALUE(\" 1 \"&ТаблицаРасходовЗаМесяц[[#Headers],[Апрель]]&_ГОД),Другое[Дата отправки запроса на платеж],\"<=\"&G$4)","v":{"v":0,"d":"0.00 ₽"}},{"$f":"SUMIFS(РасходыПоСтатьям[Сумма платежа],РасходыПоСтатьям[Код ГК],ТаблицаРасходовЗаМесяц[[#This Row],[Код ГК]],РасходыПоСтатьям[Дата счета],\">=\"&H$3,РасходыПоСтатьям[Дата счета],\"<=\"&H$4)+SUMIFS(Другое[Сумма платежа],Другое[Код ГК],ТаблицаРасходовЗаМесяц[[#This Row],[Код ГК]],Другое[Дата отправки запроса на платеж],\">=\"&DATEVALUE(\" 1 \"&ТаблицаРасходовЗаМесяц[[#Headers],[Май]]&_ГОД),Другое[Дата отправки запроса на платеж],\"<=\"&H$4)","v":{"v":0,"d":"0.00 ₽"}},{"$f":"SUMIFS(РасходыПоСтатьям[Сумма платежа],РасходыПоСтатьям[Код ГК],ТаблицаРасходовЗаМесяц[[#This Row],[Код ГК]],РасходыПоСтатьям[Дата счета],\">=\"&I$3,РасходыПоСтатьям[Дата счета],\"<=\"&I$4)+SUMIFS(Другое[Сумма платежа],Другое[Код ГК],ТаблицаРасходовЗаМесяц[[#This Row],[Код ГК]],Другое[Дата отправки запроса на платеж],\">=\"&DATEVALUE(\" 1 \"&ТаблицаРасходовЗаМесяц[[#Headers],[Июнь]]&_ГОД),Другое[Дата отправки запроса на платеж],\"<=\"&I$4)","v":{"v":0,"d":"0.00 ₽"}},{"$f":"SUMIFS(РасходыПоСтатьям[Сумма платежа],РасходыПоСтатьям[Код ГК],ТаблицаРасходовЗаМесяц[[#This Row],[Код ГК]],РасходыПоСтатьям[Дата счета],\">=\"&J$3,РасходыПоСтатьям[Дата счета],\"<=\"&J$4)+SUMIFS(Другое[Сумма платежа],Другое[Код ГК],ТаблицаРасходовЗаМесяц[[#This Row],[Код ГК]],Другое[Дата отправки запроса на платеж],\">=\"&DATEVALUE(\" 1 \"&ТаблицаРасходовЗаМесяц[[#Headers],[Июль]]&_ГОД),Другое[Дата отправки запроса на платеж],\"<=\"&J$4)","v":{"v":0,"d":"0.00 ₽"}},{"$f":"SUMIFS(РасходыПоСтатьям[Сумма платежа],РасходыПоСтатьям[Код ГК],ТаблицаРасходовЗаМесяц[[#This Row],[Код ГК]],РасходыПоСтатьям[Дата счета],\">=\"&K$3,РасходыПоСтатьям[Дата счета],\"<=\"&K$4)+SUMIFS(Другое[Сумма платежа],Другое[Код ГК],ТаблицаРасходовЗаМесяц[[#This Row],[Код ГК]],Другое[Дата отправки запроса на платеж],\">=\"&DATEVALUE(\" 1 \"&ТаблицаРасходовЗаМесяц[[#Headers],[Август]]&_ГОД),Другое[Дата отправки запроса на платеж],\"<=\"&K$4)","v":{"v":0,"d":"0.00 ₽"}},{"$f":"SUMIFS(РасходыПоСтатьям[Сумма платежа],РасходыПоСтатьям[Код ГК],ТаблицаРасходовЗаМесяц[[#This Row],[Код ГК]],РасходыПоСтатьям[Дата счета],\">=\"&L$3,РасходыПоСтатьям[Дата счета],\"<=\"&L$4)+SUMIFS(Другое[Сумма платежа],Другое[Код ГК],ТаблицаРасходовЗаМесяц[[#This Row],[Код ГК]],Другое[Дата отправки запроса на платеж],\">=\"&DATEVALUE(\" 1 \"&ТаблицаРасходовЗаМесяц[[#Headers],[Сентябрь]]&_ГОД),Другое[Дата отправки запроса на платеж],\"<=\"&L$4)","v":{"v":0,"d":"0.00 ₽"}},{"$f":"SUMIFS(РасходыПоСтатьям[Сумма платежа],РасходыПоСтатьям[Код ГК],ТаблицаРасходовЗаМесяц[[#This Row],[Код ГК]],РасходыПоСтатьям[Дата счета],\">=\"&M$3,РасходыПоСтатьям[Дата счета],\"<=\"&M$4)+SUMIFS(Другое[Сумма платежа],Другое[Код ГК],ТаблицаРасходовЗаМесяц[[#This Row],[Код ГК]],Другое[Дата отправки запроса на платеж],\">=\"&DATEVALUE(\" 1 \"&ТаблицаРасходовЗаМесяц[[#Headers],[Октябрь]]&_ГОД),Другое[Дата отправки запроса на платеж],\"<=\"&M$4)","v":{"v":0,"d":"0.00 ₽"}},{"$f":"SUMIFS(РасходыПоСтатьям[Сумма платежа],РасходыПоСтатьям[Код ГК],ТаблицаРасходовЗаМесяц[[#This Row],[Код ГК]],РасходыПоСтатьям[Дата счета],\">=\"&N$3,РасходыПоСтатьям[Дата счета],\"<=\"&N$4)+SUMIFS(Другое[Сумма платежа],Другое[Код ГК],ТаблицаРасходовЗаМесяц[[#This Row],[Код ГК]],Другое[Дата отправки запроса на платеж],\">=\"&DATEVALUE(\" 1 \"&ТаблицаРасходовЗаМесяц[[#Headers],[Ноябрь]]&_ГОД),Другое[Дата отправки запроса на платеж],\"<=\"&N$4)","v":{"v":0,"d":"0.00 ₽"}},{"$f":"SUMIFS(РасходыПоСтатьям[Сумма платежа],РасходыПоСтатьям[Код ГК],ТаблицаРасходовЗаМесяц[[#This Row],[Код ГК]],РасходыПоСтатьям[Дата счета],\">=\"&O$3,РасходыПоСтатьям[Дата счета],\"<=\"&O$4)+SUMIFS(Другое[Сумма платежа],Другое[Код ГК],ТаблицаРасходовЗаМесяц[[#This Row],[Код ГК]],Другое[Дата отправки запроса на платеж],\">=\"&DATEVALUE(\" 1 \"&ТаблицаРасходовЗаМесяц[[#Headers],[Декабрь]]&_ГОД),Другое[Дата отправки запроса на платеж],\"<=\"&O$4)","v":{"v":0,"d":"0.00 ₽"}},{"$f":"SUM(ТаблицаРасходовЗаМесяц[[#This Row],[Январь]:[Декабрь]])","v":{"v":0,"d":"0.00 ₽"}}]
[null,3000,"Принтеры",{"$f":"SUMIFS(РасходыПоСтатьям[Сумма платежа],РасходыПоСтатьям[Код ГК],ТаблицаРасходовЗаМесяц[[#This Row],[Код ГК]],РасходыПоСтатьям[Дата счета],\">=\"&D$3,РасходыПоСтатьям[Дата счета],\"<=\"&D$4)+SUMIFS(Другое[Сумма платежа],Другое[Код ГК],ТаблицаРасходовЗаМесяц[[#This Row],[Код ГК]],Другое[Дата отправки запроса на платеж],\">=\"&DATEVALUE(\" 1 \"&ТаблицаРасходовЗаМесяц[[#Headers],[Январь]]&_ГОД),Другое[Дата отправки запроса на платеж],\"<=\"&D$4)","v":{"v":0,"d":"0.00 ₽"}},{"$f":"SUMIFS(РасходыПоСтатьям[Сумма платежа],РасходыПоСтатьям[Код ГК],ТаблицаРасходовЗаМесяц[[#This Row],[Код ГК]],РасходыПоСтатьям[Дата счета],\">=\"&E$3,РасходыПоСтатьям[Дата счета],\"<=\"&E$4)+SUMIFS(Другое[Сумма платежа],Другое[Код ГК],ТаблицаРасходовЗаМесяц[[#This Row],[Код ГК]],Другое[Дата отправки запроса на платеж],\">=\"&DATEVALUE(\" 1 \"&ТаблицаРасходовЗаМесяц[[#Headers],[Февраль]]&_ГОД),Другое[Дата отправки запроса на платеж],\"<=\"&E$4)","v":{"v":0,"d":"0.00 ₽"}},{"$f":"SUMIFS(РасходыПоСтатьям[Сумма платежа],РасходыПоСтатьям[Код ГК],ТаблицаРасходовЗаМесяц[[#This Row],[Код ГК]],РасходыПоСтатьям[Дата счета],\">=\"&F$3,РасходыПоСтатьям[Дата счета],\"<=\"&F$4)+SUMIFS(Другое[Сумма платежа],Другое[Код ГК],ТаблицаРасходовЗаМесяц[[#This Row],[Код ГК]],Другое[Дата отправки запроса на платеж],\">=\"&DATEVALUE(\" 1 \"&ТаблицаРасходовЗаМесяц[[#Headers],[Март]]&_ГОД),Другое[Дата отправки запроса на платеж],\"<=\"&F$4)","v":{"v":0,"d":"0.00 ₽"}},{"$f":"SUMIFS(РасходыПоСтатьям[Сумма платежа],РасходыПоСтатьям[Код ГК],ТаблицаРасходовЗаМесяц[[#This Row],[Код ГК]],РасходыПоСтатьям[Дата счета],\">=\"&G$3,РасходыПоСтатьям[Дата счета],\"<=\"&G$4)+SUMIFS(Другое[Сумма платежа],Другое[Код ГК],ТаблицаРасходовЗаМесяц[[#This Row],[Код ГК]],Другое[Дата отправки запроса на платеж],\">=\"&DATEVALUE(\" 1 \"&ТаблицаРасходовЗаМесяц[[#Headers],[Апрель]]&_ГОД),Другое[Дата отправки запроса на платеж],\"<=\"&G$4)","v":{"v":0,"d":"0.00 ₽"}},{"$f":"SUMIFS(РасходыПоСтатьям[Сумма платежа],РасходыПоСтатьям[Код ГК],ТаблицаРасходовЗаМесяц[[#This Row],[Код ГК]],РасходыПоСтатьям[Дата счета],\">=\"&H$3,РасходыПоСтатьям[Дата счета],\"<=\"&H$4)+SUMIFS(Другое[Сумма платежа],Другое[Код ГК],ТаблицаРасходовЗаМесяц[[#This Row],[Код ГК]],Другое[Дата отправки запроса на платеж],\">=\"&DATEVALUE(\" 1 \"&ТаблицаРасходовЗаМесяц[[#Headers],[Май]]&_ГОД),Другое[Дата отправки запроса на платеж],\"<=\"&H$4)","v":{"v":0,"d":"0.00 ₽"}},{"$f":"SUMIFS(РасходыПоСтатьям[Сумма платежа],РасходыПоСтатьям[Код ГК],ТаблицаРасходовЗаМесяц[[#This Row],[Код ГК]],РасходыПоСтатьям[Дата счета],\">=\"&I$3,РасходыПоСтатьям[Дата счета],\"<=\"&I$4)+SUMIFS(Другое[Сумма платежа],Другое[Код ГК],ТаблицаРасходовЗаМесяц[[#This Row],[Код ГК]],Другое[Дата отправки запроса на платеж],\">=\"&DATEVALUE(\" 1 \"&ТаблицаРасходовЗаМесяц[[#Headers],[Июнь]]&_ГОД),Другое[Дата отправки запроса на платеж],\"<=\"&I$4)","v":{"v":0,"d":"0.00 ₽"}},{"$f":"SUMIFS(РасходыПоСтатьям[Сумма платежа],РасходыПоСтатьям[Код ГК],ТаблицаРасходовЗаМесяц[[#This Row],[Код ГК]],РасходыПоСтатьям[Дата счета],\">=\"&J$3,РасходыПоСтатьям[Дата счета],\"<=\"&J$4)+SUMIFS(Другое[Сумма платежа],Другое[Код ГК],ТаблицаРасходовЗаМесяц[[#This Row],[Код ГК]],Другое[Дата отправки запроса на платеж],\">=\"&DATEVALUE(\" 1 \"&ТаблицаРасходовЗаМесяц[[#Headers],[Июль]]&_ГОД),Другое[Дата отправки запроса на платеж],\"<=\"&J$4)","v":{"v":0,"d":"0.00 ₽"}},{"$f":"SUMIFS(РасходыПоСтатьям[Сумма платежа],РасходыПоСтатьям[Код ГК],ТаблицаРасходовЗаМесяц[[#This Row],[Код ГК]],РасходыПоСтатьям[Дата счета],\">=\"&K$3,РасходыПоСтатьям[Дата счета],\"<=\"&K$4)+SUMIFS(Другое[Сумма платежа],Другое[Код ГК],ТаблицаРасходовЗаМесяц[[#This Row],[Код ГК]],Другое[Дата отправки запроса на платеж],\">=\"&DATEVALUE(\" 1 \"&ТаблицаРасходовЗаМесяц[[#Headers],[Август]]&_ГОД),Другое[Дата отправки запроса на платеж],\"<=\"&K$4)","v":{"v":0,"d":"0.00 ₽"}},{"$f":"SUMIFS(РасходыПоСтатьям[Сумма платежа],РасходыПоСтатьям[Код ГК],ТаблицаРасходовЗаМесяц[[#This Row],[Код ГК]],РасходыПоСтатьям[Дата счета],\">=\"&L$3,РасходыПоСтатьям[Дата счета],\"<=\"&L$4)+SUMIFS(Другое[Сумма платежа],Другое[Код ГК],ТаблицаРасходовЗаМесяц[[#This Row],[Код ГК]],Другое[Дата отправки запроса на платеж],\">=\"&DATEVALUE(\" 1 \"&ТаблицаРасходовЗаМесяц[[#Headers],[Сентябрь]]&_ГОД),Другое[Дата отправки запроса на платеж],\"<=\"&L$4)","v":{"v":0,"d":"0.00 ₽"}},{"$f":"SUMIFS(РасходыПоСтатьям[Сумма платежа],РасходыПоСтатьям[Код ГК],ТаблицаРасходовЗаМесяц[[#This Row],[Код ГК]],РасходыПоСтатьям[Дата счета],\">=\"&M$3,РасходыПоСтатьям[Дата счета],\"<=\"&M$4)+SUMIFS(Другое[Сумма платежа],Другое[Код ГК],ТаблицаРасходовЗаМесяц[[#This Row],[Код ГК]],Другое[Дата отправки запроса на платеж],\">=\"&DATEVALUE(\" 1 \"&ТаблицаРасходовЗаМесяц[[#Headers],[Октябрь]]&_ГОД),Другое[Дата отправки запроса на платеж],\"<=\"&M$4)","v":{"v":0,"d":"0.00 ₽"}},{"$f":"SUMIFS(РасходыПоСтатьям[Сумма платежа],РасходыПоСтатьям[Код ГК],ТаблицаРасходовЗаМесяц[[#This Row],[Код ГК]],РасходыПоСтатьям[Дата счета],\">=\"&N$3,РасходыПоСтатьям[Дата счета],\"<=\"&N$4)+SUMIFS(Другое[Сумма платежа],Другое[Код ГК],ТаблицаРасходовЗаМесяц[[#This Row],[Код ГК]],Другое[Дата отправки запроса на платеж],\">=\"&DATEVALUE(\" 1 \"&ТаблицаРасходовЗаМесяц[[#Headers],[Ноябрь]]&_ГОД),Другое[Дата отправки запроса на платеж],\"<=\"&N$4)","v":{"v":0,"d":"0.00 ₽"}},{"$f":"SUMIFS(РасходыПоСтатьям[Сумма платежа],РасходыПоСтатьям[Код ГК],ТаблицаРасходовЗаМесяц[[#This Row],[Код ГК]],РасходыПоСтатьям[Дата счета],\">=\"&O$3,РасходыПоСтатьям[Дата счета],\"<=\"&O$4)+SUMIFS(Другое[Сумма платежа],Другое[Код ГК],ТаблицаРасходовЗаМесяц[[#This Row],[Код ГК]],Другое[Дата отправки запроса на платеж],\">=\"&DATEVALUE(\" 1 \"&ТаблицаРасходовЗаМесяц[[#Headers],[Декабрь]]&_ГОД),Другое[Дата отправки запроса на платеж],\"<=\"&O$4)","v":{"v":0,"d":"0.00 ₽"}},{"$f":"SUM(ТаблицаРасходовЗаМесяц[[#This Row],[Январь]:[Декабрь]])","v":{"v":0,"d":"0.00 ₽"}}]
[null,4000,"Затраты на сервер",{"$f":"SUMIFS(РасходыПоСтатьям[Сумма платежа],РасходыПоСтатьям[Код ГК],ТаблицаРасходовЗаМесяц[[#This Row],[Код ГК]],РасходыПоСтатьям[Дата счета],\">=\"&D$3,РасходыПоСтатьям[Дата счета],\"<=\"&D$4)+SUMIFS(Другое[Сумма платежа],Другое[Код ГК],ТаблицаРасходовЗаМесяц[[#This Row],[Код ГК]],Другое[Дата отправки запроса на платеж],\">=\"&DATEVALUE(\" 1 \"&ТаблицаРасходовЗаМесяц[[#Headers],[Январь]]&_ГОД),Другое[Дата отправки запроса на платеж],\"<=\"&D$4)","v":{"v":0,"d":"0.00 ₽"}},{"$f":"SUMIFS(РасходыПоСтатьям[Сумма платежа],РасходыПоСтатьям[Код ГК],ТаблицаРасходовЗаМесяц[[#This Row],[Код ГК]],РасходыПоСтатьям[Дата счета],\">=\"&E$3,РасходыПоСтатьям[Дата счета],\"<=\"&E$4)+SUMIFS(Другое[Сумма платежа],Другое[Код ГК],ТаблицаРасходовЗаМесяц[[#This Row],[Код ГК]],Другое[Дата отправки запроса на платеж],\">=\"&DATEVALUE(\" 1 \"&ТаблицаРасходовЗаМесяц[[#Headers],[Февраль]]&_ГОД),Другое[Дата отправки запроса на платеж],\"<=\"&E$4)","v":{"v":0,"d":"0.00 ₽"}},{"$f":"SUMIFS(РасходыПоСтатьям[Сумма платежа],РасходыПоСтатьям[Код ГК],ТаблицаРасходовЗаМесяц[[#This Row],[Код ГК]],РасходыПоСтатьям[Дата счета],\">=\"&F$3,РасходыПоСтатьям[Дата счета],\"<=\"&F$4)+SUMIFS(Другое[Сумма платежа],Другое[Код ГК],ТаблицаРасходовЗаМесяц[[#This Row],[Код ГК]],Другое[Дата отправки запроса на платеж],\">=\"&DATEVALUE(\" 1 \"&ТаблицаРасходовЗаМесяц[[#Headers],[Март]]&_ГОД),Другое[Дата отправки запроса на платеж],\"<=\"&F$4)","v":{"v":0,"d":"0.00 ₽"}},{"$f":"SUMIFS(РасходыПоСтатьям[Сумма платежа],РасходыПоСтатьям[Код ГК],ТаблицаРасходовЗаМесяц[[#This Row],[Код ГК]],РасходыПоСтатьям[Дата счета],\">=\"&G$3,РасходыПоСтатьям[Дата счета],\"<=\"&G$4)+SUMIFS(Другое[Сумма платежа],Другое[Код ГК],ТаблицаРасходовЗаМесяц[[#This Row],[Код ГК]],Другое[Дата отправки запроса на платеж],\">=\"&DATEVALUE(\" 1 \"&ТаблицаРасходовЗаМесяц[[#Headers],[Апрель]]&_ГОД),Другое[Дата отправки запроса на платеж],\"<=\"&G$4)","v":{"v":0,"d":"0.00 ₽"}},{"$f":"SUMIFS(РасходыПоСтатьям[Сумма платежа],РасходыПоСтатьям[Код ГК],ТаблицаРасходовЗаМесяц[[#This Row],[Код ГК]],РасходыПоСтатьям[Дата счета],\">=\"&H$3,РасходыПоСтатьям[Дата счета],\"<=\"&H$4)+SUMIFS(Другое[Сумма платежа],Другое[Код ГК],ТаблицаРасходовЗаМесяц[[#This Row],[Код ГК]],Другое[Дата отправки запроса на платеж],\">=\"&DATEVALUE(\" 1 \"&ТаблицаРасходовЗаМесяц[[#Headers],[Май]]&_ГОД),Другое[Дата отправки запроса на платеж],\"<=\"&H$4)","v":{"v":0,"d":"0.00 ₽"}},{"$f":"SUMIFS(РасходыПоСтатьям[Сумма платежа],РасходыПоСтатьям[Код ГК],ТаблицаРасходовЗаМесяц[[#This Row],[Код ГК]],РасходыПоСтатьям[Дата счета],\">=\"&I$3,РасходыПоСтатьям[Дата счета],\"<=\"&I$4)+SUMIFS(Другое[Сумма платежа],Другое[Код ГК],ТаблицаРасходовЗаМесяц[[#This Row],[Код ГК]],Другое[Дата отправки запроса на платеж],\">=\"&DATEVALUE(\" 1 \"&ТаблицаРасходовЗаМесяц[[#Headers],[Июнь]]&_ГОД),Другое[Дата отправки запроса на платеж],\"<=\"&I$4)","v":{"v":0,"d":"0.00 ₽"}},{"$f":"SUMIFS(РасходыПоСтатьям[Сумма платежа],РасходыПоСтатьям[Код ГК],ТаблицаРасходовЗаМесяц[[#This Row],[Код ГК]],РасходыПоСтатьям[Дата счета],\">=\"&J$3,РасходыПоСтатьям[Дата счета],\"<=\"&J$4)+SUMIFS(Другое[Сумма платежа],Другое[Код ГК],ТаблицаРасходовЗаМесяц[[#This Row],[Код ГК]],Другое[Дата отправки запроса на платеж],\">=\"&DATEVALUE(\" 1 \"&ТаблицаРасходовЗаМесяц[[#Headers],[Июль]]&_ГОД),Другое[Дата отправки запроса на платеж],\"<=\"&J$4)","v":{"v":0,"d":"0.00 ₽"}},{"$f":"SUMIFS(РасходыПоСтатьям[Сумма платежа],РасходыПоСтатьям[Код ГК],ТаблицаРасходовЗаМесяц[[#This Row],[Код ГК]],РасходыПоСтатьям[Дата счета],\">=\"&K$3,РасходыПоСтатьям[Дата счета],\"<=\"&K$4)+SUMIFS(Другое[Сумма платежа],Другое[Код ГК],ТаблицаРасходовЗаМесяц[[#This Row],[Код ГК]],Другое[Дата отправки запроса на платеж],\">=\"&DATEVALUE(\" 1 \"&ТаблицаРасходовЗаМесяц[[#Headers],[Август]]&_ГОД),Другое[Дата отправки запроса на платеж],\"<=\"&K$4)","v":{"v":0,"d":"0.00 ₽"}},{"$f":"SUMIFS(РасходыПоСтатьям[Сумма платежа],РасходыПоСтатьям[Код ГК],ТаблицаРасходовЗаМесяц[[#This Row],[Код ГК]],РасходыПоСтатьям[Дата счета],\">=\"&L$3,РасходыПоСтатьям[Дата счета],\"<=\"&L$4)+SUMIFS(Другое[Сумма платежа],Другое[Код ГК],ТаблицаРасходовЗаМесяц[[#This Row],[Код ГК]],Другое[Дата отправки запроса на платеж],\">=\"&DATEVALUE(\" 1 \"&ТаблицаРасходовЗаМесяц[[#Headers],[Сентябрь]]&_ГОД),Другое[Дата отправки запроса на платеж],\"<=\"&L$4)","v":{"v":0,"d":"0.00 ₽"}},{"$f":"SUMIFS(РасходыПоСтатьям[Сумма платежа],РасходыПоСтатьям[Код ГК],ТаблицаРасходовЗаМесяц[[#This Row],[Код ГК]],РасходыПоСтатьям[Дата счета],\">=\"&M$3,РасходыПоСтатьям[Дата счета],\"<=\"&M$4)+SUMIFS(Другое[Сумма платежа],Другое[Код ГК],ТаблицаРасходовЗаМесяц[[#This Row],[Код ГК]],Другое[Дата отправки запроса на платеж],\">=\"&DATEVALUE(\" 1 \"&ТаблицаРасходовЗаМесяц[[#Headers],[Октябрь]]&_ГОД),Другое[Дата отправки запроса на платеж],\"<=\"&M$4)","v":{"v":0,"d":"0.00 ₽"}},{"$f":"SUMIFS(РасходыПоСтатьям[Сумма платежа],РасходыПоСтатьям[Код ГК],ТаблицаРасходовЗаМесяц[[#This Row],[Код ГК]],РасходыПоСтатьям[Дата счета],\">=\"&N$3,РасходыПоСтатьям[Дата счета],\"<=\"&N$4)+SUMIFS(Другое[Сумма платежа],Другое[Код ГК],ТаблицаРасходовЗаМесяц[[#This Row],[Код ГК]],Другое[Дата отправки запроса на платеж],\">=\"&DATEVALUE(\" 1 \"&ТаблицаРасходовЗаМесяц[[#Headers],[Ноябрь]]&_ГОД),Другое[Дата отправки запроса на платеж],\"<=\"&N$4)","v":{"v":0,"d":"0.00 ₽"}},{"$f":"SUMIFS(РасходыПоСтатьям[Сумма платежа],РасходыПоСтатьям[Код ГК],ТаблицаРасходовЗаМесяц[[#This Row],[Код ГК]],РасходыПоСтатьям[Дата счета],\">=\"&O$3,РасходыПоСтатьям[Дата счета],\"<=\"&O$4)+SUMIFS(Другое[Сумма платежа],Другое[Код ГК],ТаблицаРасходовЗаМесяц[[#This Row],[Код ГК]],Другое[Дата отправки запроса на платеж],\">=\"&DATEVALUE(\" 1 \"&ТаблицаРасходовЗаМесяц[[#Headers],[Декабрь]]&_ГОД),Другое[Дата отправки запроса на платеж],\"<=\"&O$4)","v":{"v":0,"d":"0.00 ₽"}},{"$f":"SUM(ТаблицаРасходовЗаМесяц[[#This Row],[Январь]:[Декабрь]])","v":{"v":0,"d":"0.00 ₽"}}]
[null,5000,"Принадлежности",{"$f":"SUMIFS(РасходыПоСтатьям[Сумма платежа],РасходыПоСтатьям[Код ГК],ТаблицаРасходовЗаМесяц[[#This Row],[Код ГК]],РасходыПоСтатьям[Дата счета],\">=\"&D$3,РасходыПоСтатьям[Дата счета],\"<=\"&D$4)+SUMIFS(Другое[Сумма платежа],Другое[Код ГК],ТаблицаРасходовЗаМесяц[[#This Row],[Код ГК]],Другое[Дата отправки запроса на платеж],\">=\"&DATEVALUE(\" 1 \"&ТаблицаРасходовЗаМесяц[[#Headers],[Январь]]&_ГОД),Другое[Дата отправки запроса на платеж],\"<=\"&D$4)","v":{"v":0,"d":"0.00 ₽"}},{"$f":"SUMIFS(РасходыПоСтатьям[Сумма платежа],РасходыПоСтатьям[Код ГК],ТаблицаРасходовЗаМесяц[[#This Row],[Код ГК]],РасходыПоСтатьям[Дата счета],\">=\"&E$3,РасходыПоСтатьям[Дата счета],\"<=\"&E$4)+SUMIFS(Другое[Сумма платежа],Другое[Код ГК],ТаблицаРасходовЗаМесяц[[#This Row],[Код ГК]],Другое[Дата отправки запроса на платеж],\">=\"&DATEVALUE(\" 1 \"&ТаблицаРасходовЗаМесяц[[#Headers],[Февраль]]&_ГОД),Другое[Дата отправки запроса на платеж],\"<=\"&E$4)","v":{"v":0,"d":"0.00 ₽"}},{"$f":"SUMIFS(РасходыПоСтатьям[Сумма платежа],РасходыПоСтатьям[Код ГК],ТаблицаРасходовЗаМесяц[[#This Row],[Код ГК]],РасходыПоСтатьям[Дата счета],\">=\"&F$3,РасходыПоСтатьям[Дата счета],\"<=\"&F$4)+SUMIFS(Другое[Сумма платежа],Другое[Код ГК],ТаблицаРасходовЗаМесяц[[#This Row],[Код ГК]],Другое[Дата отправки запроса на платеж],\">=\"&DATEVALUE(\" 1 \"&ТаблицаРасходовЗаМесяц[[#Headers],[Март]]&_ГОД),Другое[Дата отправки запроса на платеж],\"<=\"&F$4)","v":{"v":0,"d":"0.00 ₽"}},{"$f":"SUMIFS(РасходыПоСтатьям[Сумма платежа],РасходыПоСтатьям[Код ГК],ТаблицаРасходовЗаМесяц[[#This Row],[Код ГК]],РасходыПоСтатьям[Дата счета],\">=\"&G$3,РасходыПоСтатьям[Дата счета],\"<=\"&G$4)+SUMIFS(Другое[Сумма платежа],Другое[Код ГК],ТаблицаРасходовЗаМесяц[[#This Row],[Код ГК]],Другое[Дата отправки запроса на платеж],\">=\"&DATEVALUE(\" 1 \"&ТаблицаРасходовЗаМесяц[[#Headers],[Апрель]]&_ГОД),Другое[Дата отправки запроса на платеж],\"<=\"&G$4)","v":{"v":0,"d":"0.00 ₽"}},{"$f":"SUMIFS(РасходыПоСтатьям[Сумма платежа],РасходыПоСтатьям[Код ГК],ТаблицаРасходовЗаМесяц[[#This Row],[Код ГК]],РасходыПоСтатьям[Дата счета],\">=\"&H$3,РасходыПоСтатьям[Дата счета],\"<=\"&H$4)+SUMIFS(Другое[Сумма платежа],Другое[Код ГК],ТаблицаРасходовЗаМесяц[[#This Row],[Код ГК]],Другое[Дата отправки запроса на платеж],\">=\"&DATEVALUE(\" 1 \"&ТаблицаРасходовЗаМесяц[[#Headers],[Май]]&_ГОД),Другое[Дата отправки запроса на платеж],\"<=\"&H$4)","v":{"v":0,"d":"0.00 ₽"}},{"$f":"SUMIFS(РасходыПоСтатьям[Сумма платежа],РасходыПоСтатьям[Код ГК],ТаблицаРасходовЗаМесяц[[#This Row],[Код ГК]],РасходыПоСтатьям[Дата счета],\">=\"&I$3,РасходыПоСтатьям[Дата счета],\"<=\"&I$4)+SUMIFS(Другое[Сумма платежа],Другое[Код ГК],ТаблицаРасходовЗаМесяц[[#This Row],[Код ГК]],Другое[Дата отправки запроса на платеж],\">=\"&DATEVALUE(\" 1 \"&ТаблицаРасходовЗаМесяц[[#Headers],[Июнь]]&_ГОД),Другое[Дата отправки запроса на платеж],\"<=\"&I$4)","v":{"v":0,"d":"0.00 ₽"}},{"$f":"SUMIFS(РасходыПоСтатьям[Сумма платежа],РасходыПоСтатьям[Код ГК],ТаблицаРасходовЗаМесяц[[#This Row],[Код ГК]],РасходыПоСтатьям[Дата счета],\">=\"&J$3,РасходыПоСтатьям[Дата счета],\"<=\"&J$4)+SUMIFS(Другое[Сумма платежа],Другое[Код ГК],ТаблицаРасходовЗаМесяц[[#This Row],[Код ГК]],Другое[Дата отправки запроса на платеж],\">=\"&DATEVALUE(\" 1 \"&ТаблицаРасходовЗаМесяц[[#Headers],[Июль]]&_ГОД),Другое[Дата отправки запроса на платеж],\"<=\"&J$4)","v":{"v":0,"d":"0.00 ₽"}},{"$f":"SUMIFS(РасходыПоСтатьям[Сумма платежа],РасходыПоСтатьям[Код ГК],ТаблицаРасходовЗаМесяц[[#This Row],[Код ГК]],РасходыПоСтатьям[Дата счета],\">=\"&K$3,РасходыПоСтатьям[Дата счета],\"<=\"&K$4)+SUMIFS(Другое[Сумма платежа],Другое[Код ГК],ТаблицаРасходовЗаМесяц[[#This Row],[Код ГК]],Другое[Дата отправки запроса на платеж],\">=\"&DATEVALUE(\" 1 \"&ТаблицаРасходовЗаМесяц[[#Headers],[Август]]&_ГОД),Другое[Дата отправки запроса на платеж],\"<=\"&K$4)","v":{"v":0,"d":"0.00 ₽"}},{"$f":"SUMIFS(РасходыПоСтатьям[Сумма платежа],РасходыПоСтатьям[Код ГК],ТаблицаРасходовЗаМесяц[[#This Row],[Код ГК]],РасходыПоСтатьям[Дата счета],\">=\"&L$3,РасходыПоСтатьям[Дата счета],\"<=\"&L$4)+SUMIFS(Другое[Сумма платежа],Другое[Код ГК],ТаблицаРасходовЗаМесяц[[#This Row],[Код ГК]],Другое[Дата отправки запроса на платеж],\">=\"&DATEVALUE(\" 1 \"&ТаблицаРасходовЗаМесяц[[#Headers],[Сентябрь]]&_ГОД),Другое[Дата отправки запроса на платеж],\"<=\"&L$4)","v":{"v":0,"d":"0.00 ₽"}},{"$f":"SUMIFS(РасходыПоСтатьям[Сумма платежа],РасходыПоСтатьям[Код ГК],ТаблицаРасходовЗаМесяц[[#This Row],[Код ГК]],РасходыПоСтатьям[Дата счета],\">=\"&M$3,РасходыПоСтатьям[Дата счета],\"<=\"&M$4)+SUMIFS(Другое[Сумма платежа],Другое[Код ГК],ТаблицаРасходовЗаМесяц[[#This Row],[Код ГК]],Другое[Дата отправки запроса на платеж],\">=\"&DATEVALUE(\" 1 \"&ТаблицаРасходовЗаМесяц[[#Headers],[Октябрь]]&_ГОД),Другое[Дата отправки запроса на платеж],\"<=\"&M$4)","v":{"v":0,"d":"0.00 ₽"}},{"$f":"SUMIFS(РасходыПоСтатьям[Сумма платежа],РасходыПоСтатьям[Код ГК],ТаблицаРасходовЗаМесяц[[#This Row],[Код ГК]],РасходыПоСтатьям[Дата счета],\">=\"&N$3,РасходыПоСтатьям[Дата счета],\"<=\"&N$4)+SUMIFS(Другое[Сумма платежа],Другое[Код ГК],ТаблицаРасходовЗаМесяц[[#This Row],[Код ГК]],Другое[Дата отправки запроса на платеж],\">=\"&DATEVALUE(\" 1 \"&ТаблицаРасходовЗаМесяц[[#Headers],[Ноябрь]]&_ГОД),Другое[Дата отправки запроса на платеж],\"<=\"&N$4)","v":{"v":0,"d":"0.00 ₽"}},{"$f":"SUMIFS(РасходыПоСтатьям[Сумма платежа],РасходыПоСтатьям[Код ГК],ТаблицаРасходовЗаМесяц[[#This Row],[Код ГК]],РасходыПоСтатьям[Дата счета],\">=\"&O$3,РасходыПоСтатьям[Дата счета],\"<=\"&O$4)+SUMIFS(Другое[Сумма платежа],Другое[Код ГК],ТаблицаРасходовЗаМесяц[[#This Row],[Код ГК]],Другое[Дата отправки запроса на платеж],\">=\"&DATEVALUE(\" 1 \"&ТаблицаРасходовЗаМесяц[[#Headers],[Декабрь]]&_ГОД),Другое[Дата отправки запроса на платеж],\"<=\"&O$4)","v":{"v":0,"d":"0.00 ₽"}},{"$f":"SUM(ТаблицаРасходовЗаМесяц[[#This Row],[Январь]:[Декабрь]])","v":{"v":0,"d":"0.00 ₽"}}]
[null,6000,"Расходы клиента",{"$f":"SUMIFS(РасходыПоСтатьям[Сумма платежа],РасходыПоСтатьям[Код ГК],ТаблицаРасходовЗаМесяц[[#This Row],[Код ГК]],РасходыПоСтатьям[Дата счета],\">=\"&D$3,РасходыПоСтатьям[Дата счета],\"<=\"&D$4)+SUMIFS(Другое[Сумма платежа],Другое[Код ГК],ТаблицаРасходовЗаМесяц[[#This Row],[Код ГК]],Другое[Дата отправки запроса на платеж],\">=\"&DATEVALUE(\" 1 \"&ТаблицаРасходовЗаМесяц[[#Headers],[Январь]]&_ГОД),Другое[Дата отправки запроса на платеж],\"<=\"&D$4)","v":{"v":0,"d":"0.00 ₽"}},{"$f":"SUMIFS(РасходыПоСтатьям[Сумма платежа],РасходыПоСтатьям[Код ГК],ТаблицаРасходовЗаМесяц[[#This Row],[Код ГК]],РасходыПоСтатьям[Дата счета],\">=\"&E$3,РасходыПоСтатьям[Дата счета],\"<=\"&E$4)+SUMIFS(Другое[Сумма платежа],Другое[Код ГК],ТаблицаРасходовЗаМесяц[[#This Row],[Код ГК]],Другое[Дата отправки запроса на платеж],\">=\"&DATEVALUE(\" 1 \"&ТаблицаРасходовЗаМесяц[[#Headers],[Февраль]]&_ГОД),Другое[Дата отправки запроса на платеж],\"<=\"&E$4)","v":{"v":0,"d":"0.00 ₽"}},{"$f":"SUMIFS(РасходыПоСтатьям[Сумма платежа],РасходыПоСтатьям[Код ГК],ТаблицаРасходовЗаМесяц[[#This Row],[Код ГК]],РасходыПоСтатьям[Дата счета],\">=\"&F$3,РасходыПоСтатьям[Дата счета],\"<=\"&F$4)+SUMIFS(Другое[Сумма платежа],Другое[Код ГК],ТаблицаРасходовЗаМесяц[[#This Row],[Код ГК]],Другое[Дата отправки запроса на платеж],\">=\"&DATEVALUE(\" 1 \"&ТаблицаРасходовЗаМесяц[[#Headers],[Март]]&_ГОД),Другое[Дата отправки запроса на платеж],\"<=\"&F$4)","v":{"v":0,"d":"0.00 ₽"}},{"$f":"SUMIFS(РасходыПоСтатьям[Сумма платежа],РасходыПоСтатьям[Код ГК],ТаблицаРасходовЗаМесяц[[#This Row],[Код ГК]],РасходыПоСтатьям[Дата счета],\">=\"&G$3,РасходыПоСтатьям[Дата счета],\"<=\"&G$4)+SUMIFS(Другое[Сумма платежа],Другое[Код ГК],ТаблицаРасходовЗаМесяц[[#This Row],[Код ГК]],Другое[Дата отправки запроса на платеж],\">=\"&DATEVALUE(\" 1 \"&ТаблицаРасходовЗаМесяц[[#Headers],[Апрель]]&_ГОД),Другое[Дата отправки запроса на платеж],\"<=\"&G$4)","v":{"v":0,"d":"0.00 ₽"}},{"$f":"SUMIFS(РасходыПоСтатьям[Сумма платежа],РасходыПоСтатьям[Код ГК],ТаблицаРасходовЗаМесяц[[#This Row],[Код ГК]],РасходыПоСтатьям[Дата счета],\">=\"&H$3,РасходыПоСтатьям[Дата счета],\"<=\"&H$4)+SUMIFS(Другое[Сумма платежа],Другое[Код ГК],ТаблицаРасходовЗаМесяц[[#This Row],[Код ГК]],Другое[Дата отправки запроса на платеж],\">=\"&DATEVALUE(\" 1 \"&ТаблицаРасходовЗаМесяц[[#Headers],[Май]]&_ГОД),Другое[Дата отправки запроса на платеж],\"<=\"&H$4)","v":{"v":0,"d":"0.00 ₽"}},{"$f":"SUMIFS(РасходыПоСтатьям[Сумма платежа],РасходыПоСтатьям[Код ГК],ТаблицаРасходовЗаМесяц[[#This Row],[Код ГК]],РасходыПоСтатьям[Дата счета],\">=\"&I$3,РасходыПоСтатьям[Дата счета],\"<=\"&I$4)+SUMIFS(Другое[Сумма платежа],Другое[Код ГК],ТаблицаРасходовЗаМесяц[[#This Row],[Код ГК]],Другое[Дата отправки запроса на платеж],\">=\"&DATEVALUE(\" 1 \"&ТаблицаРасходовЗаМесяц[[#Headers],[Июнь]]&_ГОД),Другое[Дата отправки запроса на платеж],\"<=\"&I$4)","v":{"v":0,"d":"0.00 ₽"}},{"$f":"SUMIFS(РасходыПоСтатьям[Сумма платежа],РасходыПоСтатьям[Код ГК],ТаблицаРасходовЗаМесяц[[#This Row],[Код ГК]],РасходыПоСтатьям[Дата счета],\">=\"&J$3,РасходыПоСтатьям[Дата счета],\"<=\"&J$4)+SUMIFS(Другое[Сумма платежа],Другое[Код ГК],ТаблицаРасходовЗаМесяц[[#This Row],[Код ГК]],Другое[Дата отправки запроса на платеж],\">=\"&DATEVALUE(\" 1 \"&ТаблицаРасходовЗаМесяц[[#Headers],[Июль]]&_ГОД),Другое[Дата отправки запроса на платеж],\"<=\"&J$4)","v":{"v":0,"d":"0.00 ₽"}},{"$f":"SUMIFS(РасходыПоСтатьям[Сумма платежа],РасходыПоСтатьям[Код ГК],ТаблицаРасходовЗаМесяц[[#This Row],[Код ГК]],РасходыПоСтатьям[Дата счета],\">=\"&K$3,РасходыПоСтатьям[Дата счета],\"<=\"&K$4)+SUMIFS(Другое[Сумма платежа],Другое[Код ГК],ТаблицаРасходовЗаМесяц[[#This Row],[Код ГК]],Другое[Дата отправки запроса на платеж],\">=\"&DATEVALUE(\" 1 \"&ТаблицаРасходовЗаМесяц[[#Headers],[Август]]&_ГОД),Другое[Дата отправки запроса на платеж],\"<=\"&K$4)","v":{"v":0,"d":"0.00 ₽"}},{"$f":"SUMIFS(РасходыПоСтатьям[Сумма платежа],РасходыПоСтатьям[Код ГК],ТаблицаРасходовЗаМесяц[[#This Row],[Код ГК]],РасходыПоСтатьям[Дата счета],\">=\"&L$3,РасходыПоСтатьям[Дата счета],\"<=\"&L$4)+SUMIFS(Другое[Сумма платежа],Другое[Код ГК],ТаблицаРасходовЗаМесяц[[#This Row],[Код ГК]],Другое[Дата отправки запроса на платеж],\">=\"&DATEVALUE(\" 1 \"&ТаблицаРасходовЗаМесяц[[#Headers],[Сентябрь]]&_ГОД),Другое[Дата отправки запроса на платеж],\"<=\"&L$4)","v":{"v":0,"d":"0.00 ₽"}},{"$f":"SUMIFS(РасходыПоСтатьям[Сумма платежа],РасходыПоСтатьям[Код ГК],ТаблицаРасходовЗаМесяц[[#This Row],[Код ГК]],РасходыПоСтатьям[Дата счета],\">=\"&M$3,РасходыПоСтатьям[Дата счета],\"<=\"&M$4)+SUMIFS(Другое[Сумма платежа],Другое[Код ГК],ТаблицаРасходовЗаМесяц[[#This Row],[Код ГК]],Другое[Дата отправки запроса на платеж],\">=\"&DATEVALUE(\" 1 \"&ТаблицаРасходовЗаМесяц[[#Headers],[Октябрь]]&_ГОД),Другое[Дата отправки запроса на платеж],\"<=\"&M$4)","v":{"v":0,"d":"0.00 ₽"}},{"$f":"SUMIFS(РасходыПоСтатьям[Сумма платежа],РасходыПоСтатьям[Код ГК],ТаблицаРасходовЗаМесяц[[#This Row],[Код ГК]],РасходыПоСтатьям[Дата счета],\">=\"&N$3,РасходыПоСтатьям[Дата счета],\"<=\"&N$4)+SUMIFS(Другое[Сумма платежа],Другое[Код ГК],ТаблицаРасходовЗаМесяц[[#This Row],[Код ГК]],Другое[Дата отправки запроса на платеж],\">=\"&DATEVALUE(\" 1 \"&ТаблицаРасходовЗаМесяц[[#Headers],[Ноябрь]]&_ГОД),Другое[Дата отправки запроса на платеж],\"<=\"&N$4)","v":{"v":0,"d":"0.00 ₽"}},{"$f":"SUMIFS(РасходыПоСтатьям[Сумма платежа],РасходыПоСтатьям[Код ГК],ТаблицаРасходовЗаМесяц[[#This Row],[Код ГК]],РасходыПоСтатьям[Дата счета],\">=\"&O$3,РасходыПоСтатьям[Дата счета],\"<=\"&O$4)+SUMIFS(Другое[Сумма платежа],Другое[Код ГК],ТаблицаРасходовЗаМесяц[[#This Row],[Код ГК]],Другое[Дата отправки запроса на платеж],\">=\"&DATEVALUE(\" 1 \"&ТаблицаРасходовЗаМесяц[[#Headers],[Декабрь]]&_ГОД),Другое[Дата отправки запроса на платеж],\"<=\"&O$4)","v":{"v":0,"d":"0.00 ₽"}},{"$f":"SUM(ТаблицаРасходовЗаМесяц[[#This Row],[Январь]:[Декабрь]])","v":{"v":0,"d":"0.00 ₽"}}]
[null,7000,"Компьютеры",{"$f":"SUMIFS(РасходыПоСтатьям[Сумма платежа],РасходыПоСтатьям[Код ГК],ТаблицаРасходовЗаМесяц[[#This Row],[Код ГК]],РасходыПоСтатьям[Дата счета],\">=\"&D$3,РасходыПоСтатьям[Дата счета],\"<=\"&D$4)+SUMIFS(Другое[Сумма платежа],Другое[Код ГК],ТаблицаРасходовЗаМесяц[[#This Row],[Код ГК]],Другое[Дата отправки запроса на платеж],\">=\"&DATEVALUE(\" 1 \"&ТаблицаРасходовЗаМесяц[[#Headers],[Январь]]&_ГОД),Другое[Дата отправки запроса на платеж],\"<=\"&D$4)","v":{"v":0,"d":"0.00 ₽"}},{"$f":"SUMIFS(РасходыПоСтатьям[Сумма платежа],РасходыПоСтатьям[Код ГК],ТаблицаРасходовЗаМесяц[[#This Row],[Код ГК]],РасходыПоСтатьям[Дата счета],\">=\"&E$3,РасходыПоСтатьям[Дата счета],\"<=\"&E$4)+SUMIFS(Другое[Сумма платежа],Другое[Код ГК],ТаблицаРасходовЗаМесяц[[#This Row],[Код ГК]],Другое[Дата отправки запроса на платеж],\">=\"&DATEVALUE(\" 1 \"&ТаблицаРасходовЗаМесяц[[#Headers],[Февраль]]&_ГОД),Другое[Дата отправки запроса на платеж],\"<=\"&E$4)","v":{"v":0,"d":"0.00 ₽"}},{"$f":"SUMIFS(РасходыПоСтатьям[Сумма платежа],РасходыПоСтатьям[Код ГК],ТаблицаРасходовЗаМесяц[[#This Row],[Код ГК]],РасходыПоСтатьям[Дата счета],\">=\"&F$3,РасходыПоСтатьям[Дата счета],\"<=\"&F$4)+SUMIFS(Другое[Сумма платежа],Другое[Код ГК],ТаблицаРасходовЗаМесяц[[#This Row],[Код ГК]],Другое[Дата отправки запроса на платеж],\">=\"&DATEVALUE(\" 1 \"&ТаблицаРасходовЗаМесяц[[#Headers],[Март]]&_ГОД),Другое[Дата отправки запроса на платеж],\"<=\"&F$4)","v":{"v":0,"d":"0.00 ₽"}},{"$f":"SUMIFS(РасходыПоСтатьям[Сумма платежа],РасходыПоСтатьям[Код ГК],ТаблицаРасходовЗаМесяц[[#This Row],[Код ГК]],РасходыПоСтатьям[Дата счета],\">=\"&G$3,РасходыПоСтатьям[Дата счета],\"<=\"&G$4)+SUMIFS(Другое[Сумма платежа],Другое[Код ГК],ТаблицаРасходовЗаМесяц[[#This Row],[Код ГК]],Другое[Дата отправки запроса на платеж],\">=\"&DATEVALUE(\" 1 \"&ТаблицаРасходовЗаМесяц[[#Headers],[Апрель]]&_ГОД),Другое[Дата отправки запроса на платеж],\"<=\"&G$4)","v":{"v":0,"d":"0.00 ₽"}},{"$f":"SUMIFS(РасходыПоСтатьям[Сумма платежа],РасходыПоСтатьям[Код ГК],ТаблицаРасходовЗаМесяц[[#This Row],[Код ГК]],РасходыПоСтатьям[Дата счета],\">=\"&H$3,РасходыПоСтатьям[Дата счета],\"<=\"&H$4)+SUMIFS(Другое[Сумма платежа],Другое[Код ГК],ТаблицаРасходовЗаМесяц[[#This Row],[Код ГК]],Другое[Дата отправки запроса на платеж],\">=\"&DATEVALUE(\" 1 \"&ТаблицаРасходовЗаМесяц[[#Headers],[Май]]&_ГОД),Другое[Дата отправки запроса на платеж],\"<=\"&H$4)","v":{"v":0,"d":"0.00 ₽"}},{"$f":"SUMIFS(РасходыПоСтатьям[Сумма платежа],РасходыПоСтатьям[Код ГК],ТаблицаРасходовЗаМесяц[[#This Row],[Код ГК]],РасходыПоСтатьям[Дата счета],\">=\"&I$3,РасходыПоСтатьям[Дата счета],\"<=\"&I$4)+SUMIFS(Другое[Сумма платежа],Другое[Код ГК],ТаблицаРасходовЗаМесяц[[#This Row],[Код ГК]],Другое[Дата отправки запроса на платеж],\">=\"&DATEVALUE(\" 1 \"&ТаблицаРасходовЗаМесяц[[#Headers],[Июнь]]&_ГОД),Другое[Дата отправки запроса на платеж],\"<=\"&I$4)","v":{"v":0,"d":"0.00 ₽"}},{"$f":"SUMIFS(РасходыПоСтатьям[Сумма платежа],РасходыПоСтатьям[Код ГК],ТаблицаРасходовЗаМесяц[[#This Row],[Код ГК]],РасходыПоСтатьям[Дата счета],\">=\"&J$3,РасходыПоСтатьям[Дата счета],\"<=\"&J$4)+SUMIFS(Другое[Сумма платежа],Другое[Код ГК],ТаблицаРасходовЗаМесяц[[#This Row],[Код ГК]],Другое[Дата отправки запроса на платеж],\">=\"&DATEVALUE(\" 1 \"&ТаблицаРасходовЗаМесяц[[#Headers],[Июль]]&_ГОД),Другое[Дата отправки запроса на платеж],\"<=\"&J$4)","v":{"v":0,"d":"0.00 ₽"}},{"$f":"SUMIFS(РасходыПоСтатьям[Сумма платежа],РасходыПоСтатьям[Код ГК],ТаблицаРасходовЗаМесяц[[#This Row],[Код ГК]],РасходыПоСтатьям[Дата счета],\">=\"&K$3,РасходыПоСтатьям[Дата счета],\"<=\"&K$4)+SUMIFS(Другое[Сумма платежа],Другое[Код ГК],ТаблицаРасходовЗаМесяц[[#This Row],[Код ГК]],Другое[Дата отправки запроса на платеж],\">=\"&DATEVALUE(\" 1 \"&ТаблицаРасходовЗаМесяц[[#Headers],[Август]]&_ГОД),Другое[Дата отправки запроса на платеж],\"<=\"&K$4)","v":{"v":0,"d":"0.00 ₽"}},{"$f":"SUMIFS(РасходыПоСтатьям[Сумма платежа],РасходыПоСтатьям[Код ГК],ТаблицаРасходовЗаМесяц[[#This Row],[Код ГК]],РасходыПоСтатьям[Дата счета],\">=\"&L$3,РасходыПоСтатьям[Дата счета],\"<=\"&L$4)+SUMIFS(Другое[Сумма платежа],Другое[Код ГК],ТаблицаРасходовЗаМесяц[[#This Row],[Код ГК]],Другое[Дата отправки запроса на платеж],\">=\"&DATEVALUE(\" 1 \"&ТаблицаРасходовЗаМесяц[[#Headers],[Сентябрь]]&_ГОД),Другое[Дата отправки запроса на платеж],\"<=\"&L$4)","v":{"v":0,"d":"0.00 ₽"}},{"$f":"SUMIFS(РасходыПоСтатьям[Сумма платежа],РасходыПоСтатьям[Код ГК],ТаблицаРасходовЗаМесяц[[#This Row],[Код ГК]],РасходыПоСтатьям[Дата счета],\">=\"&M$3,РасходыПоСтатьям[Дата счета],\"<=\"&M$4)+SUMIFS(Другое[Сумма платежа],Другое[Код ГК],ТаблицаРасходовЗаМесяц[[#This Row],[Код ГК]],Другое[Дата отправки запроса на платеж],\">=\"&DATEVALUE(\" 1 \"&ТаблицаРасходовЗаМесяц[[#Headers],[Октябрь]]&_ГОД),Другое[Дата отправки запроса на платеж],\"<=\"&M$4)","v":{"v":0,"d":"0.00 ₽"}},{"$f":"SUMIFS(РасходыПоСтатьям[Сумма платежа],РасходыПоСтатьям[Код ГК],ТаблицаРасходовЗаМесяц[[#This Row],[Код ГК]],РасходыПоСтатьям[Дата счета],\">=\"&N$3,РасходыПоСтатьям[Дата счета],\"<=\"&N$4)+SUMIFS(Другое[Сумма платежа],Другое[Код ГК],ТаблицаРасходовЗаМесяц[[#This Row],[Код ГК]],Другое[Дата отправки запроса на платеж],\">=\"&DATEVALUE(\" 1 \"&ТаблицаРасходовЗаМесяц[[#Headers],[Ноябрь]]&_ГОД),Другое[Дата отправки запроса на платеж],\"<=\"&N$4)","v":{"v":0,"d":"0.00 ₽"}},{"$f":"SUMIFS(РасходыПоСтатьям[Сумма платежа],РасходыПоСтатьям[Код ГК],ТаблицаРасходовЗаМесяц[[#This Row],[Код ГК]],РасходыПоСтатьям[Дата счета],\">=\"&O$3,РасходыПоСтатьям[Дата счета],\"<=\"&O$4)+SUMIFS(Другое[Сумма платежа],Другое[Код ГК],ТаблицаРасходовЗаМесяц[[#This Row],[Код ГК]],Другое[Дата отправки запроса на платеж],\">=\"&DATEVALUE(\" 1 \"&ТаблицаРасходовЗаМесяц[[#Headers],[Декабрь]]&_ГОД),Другое[Дата отправки запроса на платеж],\"<=\"&O$4)","v":{"v":0,"d":"0.00 ₽"}},{"$f":"SUM(ТаблицаРасходовЗаМесяц[[#This Row],[Январь]:[Декабрь]])","v":{"v":0,"d":"0.00 ₽"}}]
[null,8000,"Медицинский план",{"$f":"SUMIFS(РасходыПоСтатьям[Сумма платежа],РасходыПоСтатьям[Код ГК],ТаблицаРасходовЗаМесяц[[#This Row],[Код ГК]],РасходыПоСтатьям[Дата счета],\">=\"&D$3,РасходыПоСтатьям[Дата счета],\"<=\"&D$4)+SUMIFS(Другое[Сумма платежа],Другое[Код ГК],ТаблицаРасходовЗаМесяц[[#This Row],[Код ГК]],Другое[Дата отправки запроса на платеж],\">=\"&DATEVALUE(\" 1 \"&ТаблицаРасходовЗаМесяц[[#Headers],[Январь]]&_ГОД),Другое[Дата отправки запроса на платеж],\"<=\"&D$4)","v":{"v":0,"d":"0.00 ₽"}},{"$f":"SUMIFS(РасходыПоСтатьям[Сумма платежа],РасходыПоСтатьям[Код ГК],ТаблицаРасходовЗаМесяц[[#This Row],[Код ГК]],РасходыПоСтатьям[Дата счета],\">=\"&E$3,РасходыПоСтатьям[Дата счета],\"<=\"&E$4)+SUMIFS(Другое[Сумма платежа],Другое[Код ГК],ТаблицаРасходовЗаМесяц[[#This Row],[Код ГК]],Другое[Дата отправки запроса на платеж],\">=\"&DATEVALUE(\" 1 \"&ТаблицаРасходовЗаМесяц[[#Headers],[Февраль]]&_ГОД),Другое[Дата отправки запроса на платеж],\"<=\"&E$4)","v":{"v":0,"d":"0.00 ₽"}},{"$f":"SUMIFS(РасходыПоСтатьям[Сумма платежа],РасходыПоСтатьям[Код ГК],ТаблицаРасходовЗаМесяц[[#This Row],[Код ГК]],РасходыПоСтатьям[Дата счета],\">=\"&F$3,РасходыПоСтатьям[Дата счета],\"<=\"&F$4)+SUMIFS(Другое[Сумма платежа],Другое[Код ГК],ТаблицаРасходовЗаМесяц[[#This Row],[Код ГК]],Другое[Дата отправки запроса на платеж],\">=\"&DATEVALUE(\" 1 \"&ТаблицаРасходовЗаМесяц[[#Headers],[Март]]&_ГОД),Другое[Дата отправки запроса на платеж],\"<=\"&F$4)","v":{"v":0,"d":"0.00 ₽"}},{"$f":"SUMIFS(РасходыПоСтатьям[Сумма платежа],РасходыПоСтатьям[Код ГК],ТаблицаРасходовЗаМесяц[[#This Row],[Код ГК]],РасходыПоСтатьям[Дата счета],\">=\"&G$3,РасходыПоСтатьям[Дата счета],\"<=\"&G$4)+SUMIFS(Другое[Сумма платежа],Другое[Код ГК],ТаблицаРасходовЗаМесяц[[#This Row],[Код ГК]],Другое[Дата отправки запроса на платеж],\">=\"&DATEVALUE(\" 1 \"&ТаблицаРасходовЗаМесяц[[#Headers],[Апрель]]&_ГОД),Другое[Дата отправки запроса на платеж],\"<=\"&G$4)","v":{"v":0,"d":"0.00 ₽"}},{"$f":"SUMIFS(РасходыПоСтатьям[Сумма платежа],РасходыПоСтатьям[Код ГК],ТаблицаРасходовЗаМесяц[[#This Row],[Код ГК]],РасходыПоСтатьям[Дата счета],\">=\"&H$3,РасходыПоСтатьям[Дата счета],\"<=\"&H$4)+SUMIFS(Другое[Сумма платежа],Другое[Код ГК],ТаблицаРасходовЗаМесяц[[#This Row],[Код ГК]],Другое[Дата отправки запроса на платеж],\">=\"&DATEVALUE(\" 1 \"&ТаблицаРасходовЗаМесяц[[#Headers],[Май]]&_ГОД),Другое[Дата отправки запроса на платеж],\"<=\"&H$4)","v":{"v":0,"d":"0.00 ₽"}},{"$f":"SUMIFS(РасходыПоСтатьям[Сумма платежа],РасходыПоСтатьям[Код ГК],ТаблицаРасходовЗаМесяц[[#This Row],[Код ГК]],РасходыПоСтатьям[Дата счета],\">=\"&I$3,РасходыПоСтатьям[Дата счета],\"<=\"&I$4)+SUMIFS(Другое[Сумма платежа],Другое[Код ГК],ТаблицаРасходовЗаМесяц[[#This Row],[Код ГК]],Другое[Дата отправки запроса на платеж],\">=\"&DATEVALUE(\" 1 \"&ТаблицаРасходовЗаМесяц[[#Headers],[Июнь]]&_ГОД),Другое[Дата отправки запроса на платеж],\"<=\"&I$4)","v":{"v":0,"d":"0.00 ₽"}},{"$f":"SUMIFS(РасходыПоСтатьям[Сумма платежа],РасходыПоСтатьям[Код ГК],ТаблицаРасходовЗаМесяц[[#This Row],[Код ГК]],РасходыПоСтатьям[Дата счета],\">=\"&J$3,РасходыПоСтатьям[Дата счета],\"<=\"&J$4)+SUMIFS(Другое[Сумма платежа],Другое[Код ГК],ТаблицаРасходовЗаМесяц[[#This Row],[Код ГК]],Другое[Дата отправки запроса на платеж],\">=\"&DATEVALUE(\" 1 \"&ТаблицаРасходовЗаМесяц[[#Headers],[Июль]]&_ГОД),Другое[Дата отправки запроса на платеж],\"<=\"&J$4)","v":{"v":0,"d":"0.00 ₽"}},{"$f":"SUMIFS(РасходыПоСтатьям[Сумма платежа],РасходыПоСтатьям[Код ГК],ТаблицаРасходовЗаМесяц[[#This Row],[Код ГК]],РасходыПоСтатьям[Дата счета],\">=\"&K$3,РасходыПоСтатьям[Дата счета],\"<=\"&K$4)+SUMIFS(Другое[Сумма платежа],Другое[Код ГК],ТаблицаРасходовЗаМесяц[[#This Row],[Код ГК]],Другое[Дата отправки запроса на платеж],\">=\"&DATEVALUE(\" 1 \"&ТаблицаРасходовЗаМесяц[[#Headers],[Август]]&_ГОД),Другое[Дата отправки запроса на платеж],\"<=\"&K$4)","v":{"v":0,"d":"0.00 ₽"}},{"$f":"SUMIFS(РасходыПоСтатьям[Сумма платежа],РасходыПоСтатьям[Код ГК],ТаблицаРасходовЗаМесяц[[#This Row],[Код ГК]],РасходыПоСтатьям[Дата счета],\">=\"&L$3,РасходыПоСтатьям[Дата счета],\"<=\"&L$4)+SUMIFS(Другое[Сумма платежа],Другое[Код ГК],ТаблицаРасходовЗаМесяц[[#This Row],[Код ГК]],Другое[Дата отправки запроса на платеж],\">=\"&DATEVALUE(\" 1 \"&ТаблицаРасходовЗаМесяц[[#Headers],[Сентябрь]]&_ГОД),Другое[Дата отправки запроса на платеж],\"<=\"&L$4)","v":{"v":0,"d":"0.00 ₽"}},{"$f":"SUMIFS(РасходыПоСтатьям[Сумма платежа],РасходыПоСтатьям[Код ГК],ТаблицаРасходовЗаМесяц[[#This Row],[Код ГК]],РасходыПоСтатьям[Дата счета],\">=\"&M$3,РасходыПоСтатьям[Дата счета],\"<=\"&M$4)+SUMIFS(Другое[Сумма платежа],Другое[Код ГК],ТаблицаРасходовЗаМесяц[[#This Row],[Код ГК]],Другое[Дата отправки запроса на платеж],\">=\"&DATEVALUE(\" 1 \"&ТаблицаРасходовЗаМесяц[[#Headers],[Октябрь]]&_ГОД),Другое[Дата отправки запроса на платеж],\"<=\"&M$4)","v":{"v":0,"d":"0.00 ₽"}},{"$f":"SUMIFS(РасходыПоСтатьям[Сумма платежа],РасходыПоСтатьям[Код ГК],ТаблицаРасходовЗаМесяц[[#This Row],[Код ГК]],РасходыПоСтатьям[Дата счета],\">=\"&N$3,РасходыПоСтатьям[Дата счета],\"<=\"&N$4)+SUMIFS(Другое[Сумма платежа],Другое[Код ГК],ТаблицаРасходовЗаМесяц[[#This Row],[Код ГК]],Другое[Дата отправки запроса на платеж],\">=\"&DATEVALUE(\" 1 \"&ТаблицаРасходовЗаМесяц[[#Headers],[Ноябрь]]&_ГОД),Другое[Дата отправки запроса на платеж],\"<=\"&N$4)","v":{"v":0,"d":"0.00 ₽"}},{"$f":"SUMIFS(РасходыПоСтатьям[Сумма платежа],РасходыПоСтатьям[Код ГК],ТаблицаРасходовЗаМесяц[[#This Row],[Код ГК]],РасходыПоСтатьям[Дата счета],\">=\"&O$3,РасходыПоСтатьям[Дата счета],\"<=\"&O$4)+SUMIFS(Другое[Сумма платежа],Другое[Код ГК],ТаблицаРасходовЗаМесяц[[#This Row],[Код ГК]],Другое[Дата отправки запроса на платеж],\">=\"&DATEVALUE(\" 1 \"&ТаблицаРасходовЗаМесяц[[#Headers],[Декабрь]]&_ГОД),Другое[Дата отправки запроса на платеж],\"<=\"&O$4)","v":{"v":0,"d":"0.00 ₽"}},{"$f":"SUM(ТаблицаРасходовЗаМесяц[[#This Row],[Январь]:[Декабрь]])","v":{"v":0,"d":"0.00 ₽"}}]
[null,9000,"Затраты на здание",{"$f":"SUMIFS(РасходыПоСтатьям[Сумма платежа],РасходыПоСтатьям[Код ГК],ТаблицаРасходовЗаМесяц[[#This Row],[Код ГК]],РасходыПоСтатьям[Дата счета],\">=\"&D$3,РасходыПоСтатьям[Дата счета],\"<=\"&D$4)+SUMIFS(Другое[Сумма платежа],Другое[Код ГК],ТаблицаРасходовЗаМесяц[[#This Row],[Код ГК]],Другое[Дата отправки запроса на платеж],\">=\"&DATEVALUE(\" 1 \"&ТаблицаРасходовЗаМесяц[[#Headers],[Январь]]&_ГОД),Другое[Дата отправки запроса на платеж],\"<=\"&D$4)","v":{"v":0,"d":"0.00 ₽"}},{"$f":"SUMIFS(РасходыПоСтатьям[Сумма платежа],РасходыПоСтатьям[Код ГК],ТаблицаРасходовЗаМесяц[[#This Row],[Код ГК]],РасходыПоСтатьям[Дата счета],\">=\"&E$3,РасходыПоСтатьям[Дата счета],\"<=\"&E$4)+SUMIFS(Другое[Сумма платежа],Другое[Код ГК],ТаблицаРасходовЗаМесяц[[#This Row],[Код ГК]],Другое[Дата отправки запроса на платеж],\">=\"&DATEVALUE(\" 1 \"&ТаблицаРасходовЗаМесяц[[#Headers],[Февраль]]&_ГОД),Другое[Дата отправки запроса на платеж],\"<=\"&E$4)","v":{"v":0,"d":"0.00 ₽"}},{"$f":"SUMIFS(РасходыПоСтатьям[Сумма платежа],РасходыПоСтатьям[Код ГК],ТаблицаРасходовЗаМесяц[[#This Row],[Код ГК]],РасходыПоСтатьям[Дата счета],\">=\"&F$3,РасходыПоСтатьям[Дата счета],\"<=\"&F$4)+SUMIFS(Другое[Сумма платежа],Другое[Код ГК],ТаблицаРасходовЗаМесяц[[#This Row],[Код ГК]],Другое[Дата отправки запроса на платеж],\">=\"&DATEVALUE(\" 1 \"&ТаблицаРасходовЗаМесяц[[#Headers],[Март]]&_ГОД),Другое[Дата отправки запроса на платеж],\"<=\"&F$4)","v":{"v":0,"d":"0.00 ₽"}},{"$f":"SUMIFS(РасходыПоСтатьям[Сумма платежа],РасходыПоСтатьям[Код ГК],ТаблицаРасходовЗаМесяц[[#This Row],[Код ГК]],РасходыПоСтатьям[Дата счета],\">=\"&G$3,РасходыПоСтатьям[Дата счета],\"<=\"&G$4)+SUMIFS(Другое[Сумма платежа],Другое[Код ГК],ТаблицаРасходовЗаМесяц[[#This Row],[Код ГК]],Другое[Дата отправки запроса на платеж],\">=\"&DATEVALUE(\" 1 \"&ТаблицаРасходовЗаМесяц[[#Headers],[Апрель]]&_ГОД),Другое[Дата отправки запроса на платеж],\"<=\"&G$4)","v":{"v":0,"d":"0.00 ₽"}},{"$f":"SUMIFS(РасходыПоСтатьям[Сумма платежа],РасходыПоСтатьям[Код ГК],ТаблицаРасходовЗаМесяц[[#This Row],[Код ГК]],РасходыПоСтатьям[Дата счета],\">=\"&H$3,РасходыПоСтатьям[Дата счета],\"<=\"&H$4)+SUMIFS(Другое[Сумма платежа],Другое[Код ГК],ТаблицаРасходовЗаМесяц[[#This Row],[Код ГК]],Другое[Дата отправки запроса на платеж],\">=\"&DATEVALUE(\" 1 \"&ТаблицаРасходовЗаМесяц[[#Headers],[Май]]&_ГОД),Другое[Дата отправки запроса на платеж],\"<=\"&H$4)","v":{"v":0,"d":"0.00 ₽"}},{"$f":"SUMIFS(РасходыПоСтатьям[Сумма платежа],РасходыПоСтатьям[Код ГК],ТаблицаРасходовЗаМесяц[[#This Row],[Код ГК]],РасходыПоСтатьям[Дата счета],\">=\"&I$3,РасходыПоСтатьям[Дата счета],\"<=\"&I$4)+SUMIFS(Другое[Сумма платежа],Другое[Код ГК],ТаблицаРасходовЗаМесяц[[#This Row],[Код ГК]],Другое[Дата отправки запроса на платеж],\">=\"&DATEVALUE(\" 1 \"&ТаблицаРасходовЗаМесяц[[#Headers],[Июнь]]&_ГОД),Другое[Дата отправки запроса на платеж],\"<=\"&I$4)","v":{"v":0,"d":"0.00 ₽"}},{"$f":"SUMIFS(РасходыПоСтатьям[Сумма платежа],РасходыПоСтатьям[Код ГК],ТаблицаРасходовЗаМесяц[[#This Row],[Код ГК]],РасходыПоСтатьям[Дата счета],\">=\"&J$3,РасходыПоСтатьям[Дата счета],\"<=\"&J$4)+SUMIFS(Другое[Сумма платежа],Другое[Код ГК],ТаблицаРасходовЗаМесяц[[#This Row],[Код ГК]],Другое[Дата отправки запроса на платеж],\">=\"&DATEVALUE(\" 1 \"&ТаблицаРасходовЗаМесяц[[#Headers],[Июль]]&_ГОД),Другое[Дата отправки запроса на платеж],\"<=\"&J$4)","v":{"v":0,"d":"0.00 ₽"}},{"$f":"SUMIFS(РасходыПоСтатьям[Сумма платежа],РасходыПоСтатьям[Код ГК],ТаблицаРасходовЗаМесяц[[#This Row],[Код ГК]],РасходыПоСтатьям[Дата счета],\">=\"&K$3,РасходыПоСтатьям[Дата счета],\"<=\"&K$4)+SUMIFS(Другое[Сумма платежа],Другое[Код ГК],ТаблицаРасходовЗаМесяц[[#This Row],[Код ГК]],Другое[Дата отправки запроса на платеж],\">=\"&DATEVALUE(\" 1 \"&ТаблицаРасходовЗаМесяц[[#Headers],[Август]]&_ГОД),Другое[Дата отправки запроса на платеж],\"<=\"&K$4)","v":{"v":0,"d":"0.00 ₽"}},{"$f":"SUMIFS(РасходыПоСтатьям[Сумма платежа],РасходыПоСтатьям[Код ГК],ТаблицаРасходовЗаМесяц[[#This Row],[Код ГК]],РасходыПоСтатьям[Дата счета],\">=\"&L$3,РасходыПоСтатьям[Дата счета],\"<=\"&L$4)+SUMIFS(Другое[Сумма платежа],Другое[Код ГК],ТаблицаРасходовЗаМесяц[[#This Row],[Код ГК]],Другое[Дата отправки запроса на платеж],\">=\"&DATEVALUE(\" 1 \"&ТаблицаРасходовЗаМесяц[[#Headers],[Сентябрь]]&_ГОД),Другое[Дата отправки запроса на платеж],\"<=\"&L$4)","v":{"v":0,"d":"0.00 ₽"}},{"$f":"SUMIFS(РасходыПоСтатьям[Сумма платежа],РасходыПоСтатьям[Код ГК],ТаблицаРасходовЗаМесяц[[#This Row],[Код ГК]],РасходыПоСтатьям[Дата счета],\">=\"&M$3,РасходыПоСтатьям[Дата счета],\"<=\"&M$4)+SUMIFS(Другое[Сумма платежа],Другое[Код ГК],ТаблицаРасходовЗаМесяц[[#This Row],[Код ГК]],Другое[Дата отправки запроса на платеж],\">=\"&DATEVALUE(\" 1 \"&ТаблицаРасходовЗаМесяц[[#Headers],[Октябрь]]&_ГОД),Другое[Дата отправки запроса на платеж],\"<=\"&M$4)","v":{"v":0,"d":"0.00 ₽"}},{"$f":"SUMIFS(РасходыПоСтатьям[Сумма платежа],РасходыПоСтатьям[Код ГК],ТаблицаРасходовЗаМесяц[[#This Row],[Код ГК]],РасходыПоСтатьям[Дата счета],\">=\"&N$3,РасходыПоСтатьям[Дата счета],\"<=\"&N$4)+SUMIFS(Другое[Сумма платежа],Другое[Код ГК],ТаблицаРасходовЗаМесяц[[#This Row],[Код ГК]],Другое[Дата отправки запроса на платеж],\">=\"&DATEVALUE(\" 1 \"&ТаблицаРасходовЗаМесяц[[#Headers],[Ноябрь]]&_ГОД),Другое[Дата отправки запроса на платеж],\"<=\"&N$4)","v":{"v":0,"d":"0.00 ₽"}},{"$f":"SUMIFS(РасходыПоСтатьям[Сумма платежа],РасходыПоСтатьям[Код ГК],ТаблицаРасходовЗаМесяц[[#This Row],[Код ГК]],РасходыПоСтатьям[Дата счета],\">=\"&O$3,РасходыПоСтатьям[Дата счета],\"<=\"&O$4)+SUMIFS(Другое[Сумма платежа],Другое[Код ГК],ТаблицаРасходовЗаМесяц[[#This Row],[Код ГК]],Другое[Дата отправки запроса на платеж],\">=\"&DATEVALUE(\" 1 \"&ТаблицаРасходовЗаМесяц[[#Headers],[Декабрь]]&_ГОД),Другое[Дата отправки запроса на платеж],\"<=\"&O$4)","v":{"v":0,"d":"0.00 ₽"}},{"$f":"SUM(ТаблицаРасходовЗаМесяц[[#This Row],[Январь]:[Декабрь]])","v":{"v":0,"d":"0.00 ₽"}}]
[null,10000,"Маркетинг",{"$f":"SUMIFS(РасходыПоСтатьям[Сумма платежа],РасходыПоСтатьям[Код ГК],ТаблицаРасходовЗаМесяц[[#This Row],[Код ГК]],РасходыПоСтатьям[Дата счета],\">=\"&D$3,РасходыПоСтатьям[Дата счета],\"<=\"&D$4)+SUMIFS(Другое[Сумма платежа],Другое[Код ГК],ТаблицаРасходовЗаМесяц[[#This Row],[Код ГК]],Другое[Дата отправки запроса на платеж],\">=\"&DATEVALUE(\" 1 \"&ТаблицаРасходовЗаМесяц[[#Headers],[Январь]]&_ГОД),Другое[Дата отправки запроса на платеж],\"<=\"&D$4)","v":{"v":0,"d":"0.00 ₽"}},{"$f":"SUMIFS(РасходыПоСтатьям[Сумма платежа],РасходыПоСтатьям[Код ГК],ТаблицаРасходовЗаМесяц[[#This Row],[Код ГК]],РасходыПоСтатьям[Дата счета],\">=\"&E$3,РасходыПоСтатьям[Дата счета],\"<=\"&E$4)+SUMIFS(Другое[Сумма платежа],Другое[Код ГК],ТаблицаРасходовЗаМесяц[[#This Row],[Код ГК]],Другое[Дата отправки запроса на платеж],\">=\"&DATEVALUE(\" 1 \"&ТаблицаРасходовЗаМесяц[[#Headers],[Февраль]]&_ГОД),Другое[Дата отправки запроса на платеж],\"<=\"&E$4)","v":{"v":0,"d":"0.00 ₽"}},{"$f":"SUMIFS(РасходыПоСтатьям[Сумма платежа],РасходыПоСтатьям[Код ГК],ТаблицаРасходовЗаМесяц[[#This Row],[Код ГК]],РасходыПоСтатьям[Дата счета],\">=\"&F$3,РасходыПоСтатьям[Дата счета],\"<=\"&F$4)+SUMIFS(Другое[Сумма платежа],Другое[Код ГК],ТаблицаРасходовЗаМесяц[[#This Row],[Код ГК]],Другое[Дата отправки запроса на платеж],\">=\"&DATEVALUE(\" 1 \"&ТаблицаРасходовЗаМесяц[[#Headers],[Март]]&_ГОД),Другое[Дата отправки запроса на платеж],\"<=\"&F$4)","v":{"v":0,"d":"0.00 ₽"}},{"$f":"SUMIFS(РасходыПоСтатьям[Сумма платежа],РасходыПоСтатьям[Код ГК],ТаблицаРасходовЗаМесяц[[#This Row],[Код ГК]],РасходыПоСтатьям[Дата счета],\">=\"&G$3,РасходыПоСтатьям[Дата счета],\"<=\"&G$4)+SUMIFS(Другое[Сумма платежа],Другое[Код ГК],ТаблицаРасходовЗаМесяц[[#This Row],[Код ГК]],Другое[Дата отправки запроса на платеж],\">=\"&DATEVALUE(\" 1 \"&ТаблицаРасходовЗаМесяц[[#Headers],[Апрель]]&_ГОД),Другое[Дата отправки запроса на платеж],\"<=\"&G$4)","v":{"v":0,"d":"0.00 ₽"}},{"$f":"SUMIFS(РасходыПоСтатьям[Сумма платежа],РасходыПоСтатьям[Код ГК],ТаблицаРасходовЗаМесяц[[#This Row],[Код ГК]],РасходыПоСтатьям[Дата счета],\">=\"&H$3,РасходыПоСтатьям[Дата счета],\"<=\"&H$4)+SUMIFS(Другое[Сумма платежа],Другое[Код ГК],ТаблицаРасходовЗаМесяц[[#This Row],[Код ГК]],Другое[Дата отправки запроса на платеж],\">=\"&DATEVALUE(\" 1 \"&ТаблицаРасходовЗаМесяц[[#Headers],[Май]]&_ГОД),Другое[Дата отправки запроса на платеж],\"<=\"&H$4)","v":{"v":0,"d":"0.00 ₽"}},{"$f":"SUMIFS(РасходыПоСтатьям[Сумма платежа],РасходыПоСтатьям[Код ГК],ТаблицаРасходовЗаМесяц[[#This Row],[Код ГК]],РасходыПоСтатьям[Дата счета],\">=\"&I$3,РасходыПоСтатьям[Дата счета],\"<=\"&I$4)+SUMIFS(Другое[Сумма платежа],Другое[Код ГК],ТаблицаРасходовЗаМесяц[[#This Row],[Код ГК]],Другое[Дата отправки запроса на платеж],\">=\"&DATEVALUE(\" 1 \"&ТаблицаРасходовЗаМесяц[[#Headers],[Июнь]]&_ГОД),Другое[Дата отправки запроса на платеж],\"<=\"&I$4)","v":{"v":0,"d":"0.00 ₽"}},{"$f":"SUMIFS(РасходыПоСтатьям[Сумма платежа],РасходыПоСтатьям[Код ГК],ТаблицаРасходовЗаМесяц[[#This Row],[Код ГК]],РасходыПоСтатьям[Дата счета],\">=\"&J$3,РасходыПоСтатьям[Дата счета],\"<=\"&J$4)+SUMIFS(Другое[Сумма платежа],Другое[Код ГК],ТаблицаРасходовЗаМесяц[[#This Row],[Код ГК]],Другое[Дата отправки запроса на платеж],\">=\"&DATEVALUE(\" 1 \"&ТаблицаРасходовЗаМесяц[[#Headers],[Июль]]&_ГОД),Другое[Дата отправки запроса на платеж],\"<=\"&J$4)","v":{"v":0,"d":"0.00 ₽"}},{"$f":"SUMIFS(РасходыПоСтатьям[Сумма платежа],РасходыПоСтатьям[Код ГК],ТаблицаРасходовЗаМесяц[[#This Row],[Код ГК]],РасходыПоСтатьям[Дата счета],\">=\"&K$3,РасходыПоСтатьям[Дата счета],\"<=\"&K$4)+SUMIFS(Другое[Сумма платежа],Другое[Код ГК],ТаблицаРасходовЗаМесяц[[#This Row],[Код ГК]],Другое[Дата отправки запроса на платеж],\">=\"&DATEVALUE(\" 1 \"&ТаблицаРасходовЗаМесяц[[#Headers],[Август]]&_ГОД),Другое[Дата отправки запроса на платеж],\"<=\"&K$4)","v":{"v":0,"d":"0.00 ₽"}},{"$f":"SUMIFS(РасходыПоСтатьям[Сумма платежа],РасходыПоСтатьям[Код ГК],ТаблицаРасходовЗаМесяц[[#This Row],[Код ГК]],РасходыПоСтатьям[Дата счета],\">=\"&L$3,РасходыПоСтатьям[Дата счета],\"<=\"&L$4)+SUMIFS(Другое[Сумма платежа],Другое[Код ГК],ТаблицаРасходовЗаМесяц[[#This Row],[Код ГК]],Другое[Дата отправки запроса на платеж],\">=\"&DATEVALUE(\" 1 \"&ТаблицаРасходовЗаМесяц[[#Headers],[Сентябрь]]&_ГОД),Другое[Дата отправки запроса на платеж],\"<=\"&L$4)","v":{"v":0,"d":"0.00 ₽"}},{"$f":"SUMIFS(РасходыПоСтатьям[Сумма платежа],РасходыПоСтатьям[Код ГК],ТаблицаРасходовЗаМесяц[[#This Row],[Код ГК]],РасходыПоСтатьям[Дата счета],\">=\"&M$3,РасходыПоСтатьям[Дата счета],\"<=\"&M$4)+SUMIFS(Другое[Сумма платежа],Другое[Код ГК],ТаблицаРасходовЗаМесяц[[#This Row],[Код ГК]],Другое[Дата отправки запроса на платеж],\">=\"&DATEVALUE(\" 1 \"&ТаблицаРасходовЗаМесяц[[#Headers],[Октябрь]]&_ГОД),Другое[Дата отправки запроса на платеж],\"<=\"&M$4)","v":{"v":0,"d":"0.00 ₽"}},{"$f":"SUMIFS(РасходыПоСтатьям[Сумма платежа],РасходыПоСтатьям[Код ГК],ТаблицаРасходовЗаМесяц[[#This Row],[Код ГК]],РасходыПоСтатьям[Дата счета],\">=\"&N$3,РасходыПоСтатьям[Дата счета],\"<=\"&N$4)+SUMIFS(Другое[Сумма платежа],Другое[Код ГК],ТаблицаРасходовЗаМесяц[[#This Row],[Код ГК]],Другое[Дата отправки запроса на платеж],\">=\"&DATEVALUE(\" 1 \"&ТаблицаРасходовЗаМесяц[[#Headers],[Ноябрь]]&_ГОД),Другое[Дата отправки запроса на платеж],\"<=\"&N$4)","v":{"v":0,"d":"0.00 ₽"}},{"$f":"SUMIFS(РасходыПоСтатьям[Сумма платежа],РасходыПоСтатьям[Код ГК],ТаблицаРасходовЗаМесяц[[#This Row],[Код ГК]],РасходыПоСтатьям[Дата счета],\">=\"&O$3,РасходыПоСтатьям[Дата счета],\"<=\"&O$4)+SUMIFS(Другое[Сумма платежа],Другое[Код ГК],ТаблицаРасходовЗаМесяц[[#This Row],[Код ГК]],Другое[Дата отправки запроса на платеж],\">=\"&DATEVALUE(\" 1 \"&ТаблицаРасходовЗаМесяц[[#Headers],[Декабрь]]&_ГОД),Другое[Дата отправки запроса на платеж],\"<=\"&O$4)","v":{"v":0,"d":"0.00 ₽"}},{"$f":"SUM(ТаблицаРасходовЗаМесяц[[#This Row],[Январь]:[Декабрь]])","v":{"v":0,"d":"0.00 ₽"}}]
[null,11000,"Благотворительность",{"$f":"SUMIFS(РасходыПоСтатьям[Сумма платежа],РасходыПоСтатьям[Код ГК],ТаблицаРасходовЗаМесяц[[#This Row],[Код ГК]],РасходыПоСтатьям[Дата счета],\">=\"&D$3,РасходыПоСтатьям[Дата счета],\"<=\"&D$4)+SUMIFS(Другое[Сумма платежа],Другое[Код ГК],ТаблицаРасходовЗаМесяц[[#This Row],[Код ГК]],Другое[Дата отправки запроса на платеж],\">=\"&DATEVALUE(\" 1 \"&ТаблицаРасходовЗаМесяц[[#Headers],[Январь]]&_ГОД),Другое[Дата отправки запроса на платеж],\"<=\"&D$4)","v":{"v":0,"d":"0.00 ₽"}},{"$f":"SUMIFS(РасходыПоСтатьям[Сумма платежа],РасходыПоСтатьям[Код ГК],ТаблицаРасходовЗаМесяц[[#This Row],[Код ГК]],РасходыПоСтатьям[Дата счета],\">=\"&E$3,РасходыПоСтатьям[Дата счета],\"<=\"&E$4)+SUMIFS(Другое[Сумма платежа],Другое[Код ГК],ТаблицаРасходовЗаМесяц[[#This Row],[Код ГК]],Другое[Дата отправки запроса на платеж],\">=\"&DATEVALUE(\" 1 \"&ТаблицаРасходовЗаМесяц[[#Headers],[Февраль]]&_ГОД),Другое[Дата отправки запроса на платеж],\"<=\"&E$4)","v":{"v":0,"d":"0.00 ₽"}},{"$f":"SUMIFS(РасходыПоСтатьям[Сумма платежа],РасходыПоСтатьям[Код ГК],ТаблицаРасходовЗаМесяц[[#This Row],[Код ГК]],РасходыПоСтатьям[Дата счета],\">=\"&F$3,РасходыПоСтатьям[Дата счета],\"<=\"&F$4)+SUMIFS(Другое[Сумма платежа],Другое[Код ГК],ТаблицаРасходовЗаМесяц[[#This Row],[Код ГК]],Другое[Дата отправки запроса на платеж],\">=\"&DATEVALUE(\" 1 \"&ТаблицаРасходовЗаМесяц[[#Headers],[Март]]&_ГОД),Другое[Дата отправки запроса на платеж],\"<=\"&F$4)","v":{"v":0,"d":"0.00 ₽"}},{"$f":"SUMIFS(РасходыПоСтатьям[Сумма платежа],РасходыПоСтатьям[Код ГК],ТаблицаРасходовЗаМесяц[[#This Row],[Код ГК]],РасходыПоСтатьям[Дата счета],\">=\"&G$3,РасходыПоСтатьям[Дата счета],\"<=\"&G$4)+SUMIFS(Другое[Сумма платежа],Другое[Код ГК],ТаблицаРасходовЗаМесяц[[#This Row],[Код ГК]],Другое[Дата отправки запроса на платеж],\">=\"&DATEVALUE(\" 1 \"&ТаблицаРасходовЗаМесяц[[#Headers],[Апрель]]&_ГОД),Другое[Дата отправки запроса на платеж],\"<=\"&G$4)","v":{"v":0,"d":"0.00 ₽"}},{"$f":"SUMIFS(РасходыПоСтатьям[Сумма платежа],РасходыПоСтатьям[Код ГК],ТаблицаРасходовЗаМесяц[[#This Row],[Код ГК]],РасходыПоСтатьям[Дата счета],\">=\"&H$3,РасходыПоСтатьям[Дата счета],\"<=\"&H$4)+SUMIFS(Другое[Сумма платежа],Другое[Код ГК],ТаблицаРасходовЗаМесяц[[#This Row],[Код ГК]],Другое[Дата отправки запроса на платеж],\">=\"&DATEVALUE(\" 1 \"&ТаблицаРасходовЗаМесяц[[#Headers],[Май]]&_ГОД),Другое[Дата отправки запроса на платеж],\"<=\"&H$4)","v":{"v":0,"d":"0.00 ₽"}},{"$f":"SUMIFS(РасходыПоСтатьям[Сумма платежа],РасходыПоСтатьям[Код ГК],ТаблицаРасходовЗаМесяц[[#This Row],[Код ГК]],РасходыПоСтатьям[Дата счета],\">=\"&I$3,РасходыПоСтатьям[Дата счета],\"<=\"&I$4)+SUMIFS(Другое[Сумма платежа],Другое[Код ГК],ТаблицаРасходовЗаМесяц[[#This Row],[Код ГК]],Другое[Дата отправки запроса на платеж],\">=\"&DATEVALUE(\" 1 \"&ТаблицаРасходовЗаМесяц[[#Headers],[Июнь]]&_ГОД),Другое[Дата отправки запроса на платеж],\"<=\"&I$4)","v":{"v":0,"d":"0.00 ₽"}},{"$f":"SUMIFS(РасходыПоСтатьям[Сумма платежа],РасходыПоСтатьям[Код ГК],ТаблицаРасходовЗаМесяц[[#This Row],[Код ГК]],РасходыПоСтатьям[Дата счета],\">=\"&J$3,РасходыПоСтатьям[Дата счета],\"<=\"&J$4)+SUMIFS(Другое[Сумма платежа],Другое[Код ГК],ТаблицаРасходовЗаМесяц[[#This Row],[Код ГК]],Другое[Дата отправки запроса на платеж],\">=\"&DATEVALUE(\" 1 \"&ТаблицаРасходовЗаМесяц[[#Headers],[Июль]]&_ГОД),Другое[Дата отправки запроса на платеж],\"<=\"&J$4)","v":{"v":0,"d":"0.00 ₽"}},{"$f":"SUMIFS(РасходыПоСтатьям[Сумма платежа],РасходыПоСтатьям[Код ГК],ТаблицаРасходовЗаМесяц[[#This Row],[Код ГК]],РасходыПоСтатьям[Дата счета],\">=\"&K$3,РасходыПоСтатьям[Дата счета],\"<=\"&K$4)+SUMIFS(Другое[Сумма платежа],Другое[Код ГК],ТаблицаРасходовЗаМесяц[[#This Row],[Код ГК]],Другое[Дата отправки запроса на платеж],\">=\"&DATEVALUE(\" 1 \"&ТаблицаРасходовЗаМесяц[[#Headers],[Август]]&_ГОД),Другое[Дата отправки запроса на платеж],\"<=\"&K$4)","v":{"v":0,"d":"0.00 ₽"}},{"$f":"SUMIFS(РасходыПоСтатьям[Сумма платежа],РасходыПоСтатьям[Код ГК],ТаблицаРасходовЗаМесяц[[#This Row],[Код ГК]],РасходыПоСтатьям[Дата счета],\">=\"&L$3,РасходыПоСтатьям[Дата счета],\"<=\"&L$4)+SUMIFS(Другое[Сумма платежа],Другое[Код ГК],ТаблицаРасходовЗаМесяц[[#This Row],[Код ГК]],Другое[Дата отправки запроса на платеж],\">=\"&DATEVALUE(\" 1 \"&ТаблицаРасходовЗаМесяц[[#Headers],[Сентябрь]]&_ГОД),Другое[Дата отправки запроса на платеж],\"<=\"&L$4)","v":{"v":0,"d":"0.00 ₽"}},{"$f":"SUMIFS(РасходыПоСтатьям[Сумма платежа],РасходыПоСтатьям[Код ГК],ТаблицаРасходовЗаМесяц[[#This Row],[Код ГК]],РасходыПоСтатьям[Дата счета],\">=\"&M$3,РасходыПоСтатьям[Дата счета],\"<=\"&M$4)+SUMIFS(Другое[Сумма платежа],Другое[Код ГК],ТаблицаРасходовЗаМесяц[[#This Row],[Код ГК]],Другое[Дата отправки запроса на платеж],\">=\"&DATEVALUE(\" 1 \"&ТаблицаРасходовЗаМесяц[[#Headers],[Октябрь]]&_ГОД),Другое[Дата отправки запроса на платеж],\"<=\"&M$4)","v":{"v":0,"d":"0.00 ₽"}},{"$f":"SUMIFS(РасходыПоСтатьям[Сумма платежа],РасходыПоСтатьям[Код ГК],ТаблицаРасходовЗаМесяц[[#This Row],[Код ГК]],РасходыПоСтатьям[Дата счета],\">=\"&N$3,РасходыПоСтатьям[Дата счета],\"<=\"&N$4)+SUMIFS(Другое[Сумма платежа],Другое[Код ГК],ТаблицаРасходовЗаМесяц[[#This Row],[Код ГК]],Другое[Дата отправки запроса на платеж],\">=\"&DATEVALUE(\" 1 \"&ТаблицаРасходовЗаМесяц[[#Headers],[Ноябрь]]&_ГОД),Другое[Дата отправки запроса на платеж],\"<=\"&N$4)","v":{"v":0,"d":"0.00 ₽"}},{"$f":"SUMIFS(РасходыПоСтатьям[Сумма платежа],РасходыПоСтатьям[Код ГК],ТаблицаРасходовЗаМесяц[[#This Row],[Код ГК]],РасходыПоСтатьям[Дата счета],\">=\"&O$3,РасходыПоСтатьям[Дата счета],\"<=\"&O$4)+SUMIFS(Другое[Сумма платежа],Другое[Код ГК],ТаблицаРасходовЗаМесяц[[#This Row],[Код ГК]],Другое[Дата отправки запроса на платеж],\">=\"&DATEVALUE(\" 1 \"&ТаблицаРасходовЗаМесяц[[#Headers],[Декабрь]]&_ГОД),Другое[Дата отправки запроса на платеж],\"<=\"&O$4)","v":{"v":0,"d":"0.00 ₽"}},{"$f":"SUM(ТаблицаРасходовЗаМесяц[[#This Row],[Январь]:[Декабрь]])","v":{"v":0,"d":"0.00 ₽"}}]
[null,12000,"Спонсорство",{"$f":"SUMIFS(РасходыПоСтатьям[Сумма платежа],РасходыПоСтатьям[Код ГК],ТаблицаРасходовЗаМесяц[[#This Row],[Код ГК]],РасходыПоСтатьям[Дата счета],\">=\"&D$3,РасходыПоСтатьям[Дата счета],\"<=\"&D$4)+SUMIFS(Другое[Сумма платежа],Другое[Код ГК],ТаблицаРасходовЗаМесяц[[#This Row],[Код ГК]],Другое[Дата отправки запроса на платеж],\">=\"&DATEVALUE(\" 1 \"&ТаблицаРасходовЗаМесяц[[#Headers],[Январь]]&_ГОД),Другое[Дата отправки запроса на платеж],\"<=\"&D$4)","v":{"v":0,"d":"0.00 ₽"}},{"$f":"SUMIFS(РасходыПоСтатьям[Сумма платежа],РасходыПоСтатьям[Код ГК],ТаблицаРасходовЗаМесяц[[#This Row],[Код ГК]],РасходыПоСтатьям[Дата счета],\">=\"&E$3,РасходыПоСтатьям[Дата счета],\"<=\"&E$4)+SUMIFS(Другое[Сумма платежа],Другое[Код ГК],ТаблицаРасходовЗаМесяц[[#This Row],[Код ГК]],Другое[Дата отправки запроса на платеж],\">=\"&DATEVALUE(\" 1 \"&ТаблицаРасходовЗаМесяц[[#Headers],[Февраль]]&_ГОД),Другое[Дата отправки запроса на платеж],\"<=\"&E$4)","v":{"v":0,"d":"0.00 ₽"}},{"$f":"SUMIFS(РасходыПоСтатьям[Сумма платежа],РасходыПоСтатьям[Код ГК],ТаблицаРасходовЗаМесяц[[#This Row],[Код ГК]],РасходыПоСтатьям[Дата счета],\">=\"&F$3,РасходыПоСтатьям[Дата счета],\"<=\"&F$4)+SUMIFS(Другое[Сумма платежа],Другое[Код ГК],ТаблицаРасходовЗаМесяц[[#This Row],[Код ГК]],Другое[Дата отправки запроса на платеж],\">=\"&DATEVALUE(\" 1 \"&ТаблицаРасходовЗаМесяц[[#Headers],[Март]]&_ГОД),Другое[Дата отправки запроса на платеж],\"<=\"&F$4)","v":{"v":0,"d":"0.00 ₽"}},{"$f":"SUMIFS(РасходыПоСтатьям[Сумма платежа],РасходыПоСтатьям[Код ГК],ТаблицаРасходовЗаМесяц[[#This Row],[Код ГК]],РасходыПоСтатьям[Дата счета],\">=\"&G$3,РасходыПоСтатьям[Дата счета],\"<=\"&G$4)+SUMIFS(Другое[Сумма платежа],Другое[Код ГК],ТаблицаРасходовЗаМесяц[[#This Row],[Код ГК]],Другое[Дата отправки запроса на платеж],\">=\"&DATEVALUE(\" 1 \"&ТаблицаРасходовЗаМесяц[[#Headers],[Апрель]]&_ГОД),Другое[Дата отправки запроса на платеж],\"<=\"&G$4)","v":{"v":0,"d":"0.00 ₽"}},{"$f":"SUMIFS(РасходыПоСтатьям[Сумма платежа],РасходыПоСтатьям[Код ГК],ТаблицаРасходовЗаМесяц[[#This Row],[Код ГК]],РасходыПоСтатьям[Дата счета],\">=\"&H$3,РасходыПоСтатьям[Дата счета],\"<=\"&H$4)+SUMIFS(Другое[Сумма платежа],Другое[Код ГК],ТаблицаРасходовЗаМесяц[[#This Row],[Код ГК]],Другое[Дата отправки запроса на платеж],\">=\"&DATEVALUE(\" 1 \"&ТаблицаРасходовЗаМесяц[[#Headers],[Май]]&_ГОД),Другое[Дата отправки запроса на платеж],\"<=\"&H$4)","v":{"v":0,"d":"0.00 ₽"}},{"$f":"SUMIFS(РасходыПоСтатьям[Сумма платежа],РасходыПоСтатьям[Код ГК],ТаблицаРасходовЗаМесяц[[#This Row],[Код ГК]],РасходыПоСтатьям[Дата счета],\">=\"&I$3,РасходыПоСтатьям[Дата счета],\"<=\"&I$4)+SUMIFS(Другое[Сумма платежа],Другое[Код ГК],ТаблицаРасходовЗаМесяц[[#This Row],[Код ГК]],Другое[Дата отправки запроса на платеж],\">=\"&DATEVALUE(\" 1 \"&ТаблицаРасходовЗаМесяц[[#Headers],[Июнь]]&_ГОД),Другое[Дата отправки запроса на платеж],\"<=\"&I$4)","v":{"v":0,"d":"0.00 ₽"}},{"$f":"SUMIFS(РасходыПоСтатьям[Сумма платежа],РасходыПоСтатьям[Код ГК],ТаблицаРасходовЗаМесяц[[#This Row],[Код ГК]],РасходыПоСтатьям[Дата счета],\">=\"&J$3,РасходыПоСтатьям[Дата счета],\"<=\"&J$4)+SUMIFS(Другое[Сумма платежа],Другое[Код ГК],ТаблицаРасходовЗаМесяц[[#This Row],[Код ГК]],Другое[Дата отправки запроса на платеж],\">=\"&DATEVALUE(\" 1 \"&ТаблицаРасходовЗаМесяц[[#Headers],[Июль]]&_ГОД),Другое[Дата отправки запроса на платеж],\"<=\"&J$4)","v":{"v":0,"d":"0.00 ₽"}},{"$f":"SUMIFS(РасходыПоСтатьям[Сумма платежа],РасходыПоСтатьям[Код ГК],ТаблицаРасходовЗаМесяц[[#This Row],[Код ГК]],РасходыПоСтатьям[Дата счета],\">=\"&K$3,РасходыПоСтатьям[Дата счета],\"<=\"&K$4)+SUMIFS(Другое[Сумма платежа],Другое[Код ГК],ТаблицаРасходовЗаМесяц[[#This Row],[Код ГК]],Другое[Дата отправки запроса на платеж],\">=\"&DATEVALUE(\" 1 \"&ТаблицаРасходовЗаМесяц[[#Headers],[Август]]&_ГОД),Другое[Дата отправки запроса на платеж],\"<=\"&K$4)","v":{"v":0,"d":"0.00 ₽"}},{"$f":"SUMIFS(РасходыПоСтатьям[Сумма платежа],РасходыПоСтатьям[Код ГК],ТаблицаРасходовЗаМесяц[[#This Row],[Код ГК]],РасходыПоСтатьям[Дата счета],\">=\"&L$3,РасходыПоСтатьям[Дата счета],\"<=\"&L$4)+SUMIFS(Другое[Сумма платежа],Другое[Код ГК],ТаблицаРасходовЗаМесяц[[#This Row],[Код ГК]],Другое[Дата отправки запроса на платеж],\">=\"&DATEVALUE(\" 1 \"&ТаблицаРасходовЗаМесяц[[#Headers],[Сентябрь]]&_ГОД),Другое[Дата отправки запроса на платеж],\"<=\"&L$4)","v":{"v":0,"d":"0.00 ₽"}},{"$f":"SUMIFS(РасходыПоСтатьям[Сумма платежа],РасходыПоСтатьям[Код ГК],ТаблицаРасходовЗаМесяц[[#This Row],[Код ГК]],РасходыПоСтатьям[Дата счета],\">=\"&M$3,РасходыПоСтатьям[Дата счета],\"<=\"&M$4)+SUMIFS(Другое[Сумма платежа],Другое[Код ГК],ТаблицаРасходовЗаМесяц[[#This Row],[Код ГК]],Другое[Дата отправки запроса на платеж],\">=\"&DATEVALUE(\" 1 \"&ТаблицаРасходовЗаМесяц[[#Headers],[Октябрь]]&_ГОД),Другое[Дата отправки запроса на платеж],\"<=\"&M$4)","v":{"v":0,"d":"0.00 ₽"}},{"$f":"SUMIFS(РасходыПоСтатьям[Сумма платежа],РасходыПоСтатьям[Код ГК],ТаблицаРасходовЗаМесяц[[#This Row],[Код ГК]],РасходыПоСтатьям[Дата счета],\">=\"&N$3,РасходыПоСтатьям[Дата счета],\"<=\"&N$4)+SUMIFS(Другое[Сумма платежа],Другое[Код ГК],ТаблицаРасходовЗаМесяц[[#This Row],[Код ГК]],Другое[Дата отправки запроса на платеж],\">=\"&DATEVALUE(\" 1 \"&ТаблицаРасходовЗаМесяц[[#Headers],[Ноябрь]]&_ГОД),Другое[Дата отправки запроса на платеж],\"<=\"&N$4)","v":{"v":0,"d":"0.00 ₽"}},{"$f":"SUMIFS(РасходыПоСтатьям[Сумма платежа],РасходыПоСтатьям[Код ГК],ТаблицаРасходовЗаМесяц[[#This Row],[Код ГК]],РасходыПоСтатьям[Дата счета],\">=\"&O$3,РасходыПоСтатьям[Дата счета],\"<=\"&O$4)+SUMIFS(Другое[Сумма платежа],Другое[Код ГК],ТаблицаРасходовЗаМесяц[[#This Row],[Код ГК]],Другое[Дата отправки запроса на платеж],\">=\"&DATEVALUE(\" 1 \"&ТаблицаРасходовЗаМесяц[[#Headers],[Декабрь]]&_ГОД),Другое[Дата отправки запроса на платеж],\"<=\"&O$4)","v":{"v":0,"d":"0.00 ₽"}},{"$f":"SUM(ТаблицаРасходовЗаМесяц[[#This Row],[Январь]:[Декабрь]])","v":{"v":0,"d":"0.00 ₽"}}]
[null,"Итог",null,{"$f":"SUBTOTAL(109,ТаблицаРасходовЗаМесяц[Январь])","v":{"v":0,"d":"0.00 ₽"}},{"$f":"SUBTOTAL(109,ТаблицаРасходовЗаМесяц[Февраль])","v":{"v":0,"d":"0.00 ₽"}},{"$f":"SUBTOTAL(109,ТаблицаРасходовЗаМесяц[Март])","v":{"v":0,"d":"0.00 ₽"}},{"$f":"SUBTOTAL(109,ТаблицаРасходовЗаМесяц[Апрель])","v":{"v":0,"d":"0.00 ₽"}},{"$f":"SUBTOTAL(109,ТаблицаРасходовЗаМесяц[Май])","v":{"v":0,"d":"0.00 ₽"}},{"$f":"SUBTOTAL(109,ТаблицаРасходовЗаМесяц[Июнь])","v":{"v":0,"d":"0.00 ₽"}},{"$f":"SUBTOTAL(109,ТаблицаРасходовЗаМесяц[Июль])","v":{"v":0,"d":"0.00 ₽"}},{"$f":"SUBTOTAL(109,ТаблицаРасходовЗаМесяц[Август])","v":{"v":0,"d":"0.00 ₽"}},{"$f":"SUBTOTAL(109,ТаблицаРасходовЗаМесяц[Сентябрь])","v":{"v":0,"d":"0.00 ₽"}},{"$f":"SUBTOTAL(109,ТаблицаРасходовЗаМесяц[Октябрь])","v":{"v":0,"d":"0.00 ₽"}},{"$f":"SUBTOTAL(109,ТаблицаРасходовЗаМесяц[Ноябрь])","v":{"v":0,"d":"0.00 ₽"}},{"$f":"SUBTOTAL(109,ТаблицаРасходовЗаМесяц[Декабрь])","v":{"v":0,"d":"0.00 ₽"}},{"$f":"SUBTOTAL(109,ТаблицаРасходовЗаМесяц[Итог])","v":{"v":0,"d":"0.00 ₽"}}]

{"sheet":"РАСХОДЫ ПО СТАТЬЯМ","index":2,"n_rows":6,"n_cols":10,"rows_kept":6,"merged":[[1,1,1,9],[2,1,2,5],[2,6,2,9]]}
[]
[null,"РАСХОДЫ ПО СТАТЬЯМ"]
[]
[null,"Код ГК","Дата счета","№ счета","Кем запрошено","Сумма платежа","Получатель платежа","Назначение платежа","Способ отправки","Дата представления"]
[null,1000,"Дата",100,"Виктор Дегтярев",{"v":750.75,"d":"750.75 ₽"},"Consolidated Messenger ","Почтовая программа","Почта","Дата"]
[null,7000,"Дата",101,"Павел Безруков",{"v":2500,"d":"2,500.00 ₽"},"A. Datum Corporation ","2 настольных компьютера","Кредит","Дата"]

{"sheet":"БЛАГОТВОРИТЕЛЬНОСТЬ","index":3,"n_rows":6,"n_cols":12,"rows_kept":6,"merged":[[1,1,1,11],[2,1,2,5],[2,6,2,11]]}
[]
[null,"Благотворительность и спонсорство"]
[]
[null,"Код ГК","Дата отправки запроса на платеж","Кем запрошено","Сумма платежа","Вклад за предыдущий год","Получатель платежа","Предназначение","Подписи","Категория","Способ отправки","Дата представления"]
[null,12000,"Дата","Елена Матвеева",{"v":1000,"d":"1,000.00 ₽"},{"v":12,"d":"12.00 ₽"},"Художественная школа ","Стипендии","Анастасия Лебедева","Искусство","Чек","Дата"]
[null,11000,"Дата","Елена Матвеева",{"v":2500,"d":"2,500.00 ₽"},{"v":0,"d":"0.00 ₽"},"Wingtip Toys ","Сообщество","Светлана Коновалова","Сообщество","Чек","Дата"]